Department family,Entity,Date,Expense type,Expense area,Supplier,Transaction number,Amount,VAT registration number
Department for Business Innovation and Skills,Intellectual Property Office,09/09/2015,Perpetual Licences,IT Directorate,J2,H57720150911ixkwafhri,22.42,Not Applicable
Department for Business Innovation and Skills,Intellectual Property Office,01/09/2015,Perpetual Licences,IT Directorate,Liquid 11 Ltd,H57720150904uofhpcfvz,17.95,Not Applicable
Department for Business Innovation and Skills,Intellectual Property Office,28/09/2015,Entertainment,IT Directorate,Asda Superstore 4928,H57720150930nfjqzglxy,16,Not Applicable
Department for Business Innovation and Skills,Intellectual Property Office,16/09/2015,Software Maintenance,IT Directorate,Surveymonkey.Com,H57720150918fteefjigs,200.58,Not Applicable
Department for Business Innovation and Skills,Intellectual Property Office,04/09/2015,T&S UK,IT Directorate,Aerling,H57720150909vigtldsgg,100.98,Not Applicable
Department for Business Innovation and Skills,Intellectual Property Office,17/09/2015,Perpetual Licences,IT Directorate,Myfonts,H57720150919lybhnyrjh,1079.4,Not Applicable
Department for Business Innovation and Skills,Intellectual Property Office,17/09/2015,Fixed Telecoms Equipment,IT Directorate,Rentals From 02,H57720150919oojyflffq,123.6,Not Applicable
Department for Business Innovation and Skills,Intellectual Property Office,17/09/2015,Fixed Telecoms Equipment,IT Directorate,Rentals From 02,H57720150919stpsoxbkh,4.8,Not Applicable
Department for Business Innovation and Skills,Intellectual Property Office,16/09/2015,Perpetual Licences,IT Directorate,Meetingzone Ltd,H57720150918hvluihsre,268.37,Not Applicable
Department for Business Innovation and Skills,Intellectual Property Office,02/09/2015,Software Maintenance,IT Directorate,Amazon UK Marketplace,H57720150904mxvwzenep,243.25,Not Applicable
Department for Business Innovation and Skills,Intellectual Property Office,23/09/2015,Network and infrastructure H/W,IT Directorate,Apple Store R334,H57720150925gwmtfhocl,99,Not Applicable
Department for Business Innovation and Skills,Intellectual Property Office,22/09/2015,Network and infrastructure H/W,IT Directorate,Currys Online,H57720150924bcssefqdu,34.98,Not Applicable
Department for Business Innovation and Skills,Intellectual Property Office,22/09/2015,Network and infrastructure H/W,IT Directorate,Amazon UK Marketplace,H57720150924qkxbzbqno,513.48,Not Applicable
Department for Business Innovation and Skills,Intellectual Property Office,16/09/2015,Network and infrastructure H/W,IT Directorate,Currys S/s,H57720150918liyhrpikb,702.98,Not Applicable
Department for Business Innovation and Skills,Intellectual Property Office,11/09/2015,Network and infrastructure H/W,IT Directorate,Apple Online Store Gbp,H57720150915jcibtocch,375,Not Applicable
Department for Business Innovation and Skills,Intellectual Property Office,11/09/2015,Network and infrastructure H/W,IT Directorate,Currys S/s,H57720150915qmkrchies,29,Not Applicable
Department for Business Innovation and Skills,Intellectual Property Office,10/09/2015,Network and infrastructure H/W,IT Directorate,Machine Mart Ltd,H57720150912hckitosrg,43.19,Not Applicable
Department for Business Innovation and Skills,Intellectual Property Office,10/09/2015,Network and infrastructure H/W,IT Directorate,Machine Mart Ltd,H57720150912npuecudtl,7.19,Not Applicable
Department for Business Innovation and Skills,Intellectual Property Office,07/09/2015,Network and infrastructure H/W,IT Directorate,Laptopsdirect,H57720150909nmleyutzd,207.6,Not Applicable
Department for Business Innovation and Skills,Intellectual Property Office,28/09/2015,Software Maintenance,IT Directorate,Solarwinds,H57720150930gvmhxwqar,4440,Not Applicable
Department for Business Innovation and Skills,Intellectual Property Office,02/09/2015,Perpetual Licences,IT Directorate,Websitepulse.Com,H57720150905rawrdfjsm,46.15,Not Applicable
Department for Business Innovation and Skills,Intellectual Property Office,17/09/2015,Legal Consultancy,IT Directorate,Paypal,H57720150919fugjdyxph,75,Not Applicable
Department for Business Innovation and Skills,Intellectual Property Office,17/09/2015,T&S O-seas excl EPOQUE,IT Directorate,Hrg UK Inm165847466,H57720150923hdywckgpu,6.54,Not Applicable
Department for Business Innovation and Skills,Intellectual Property Office,17/09/2015,T&S O-seas excl EPOQUE,IT Directorate,Hrg UK Inm165847173,H57720150923njtratcwg,6.63,Not Applicable
Department for Business Innovation and Skills,Intellectual Property Office,17/09/2015,T&S O-seas excl EPOQUE,IT Directorate,Hrg UK Inm165847489,H57720150923ocxooekbr,6.57,Not Applicable
Department for Business Innovation and Skills,Intellectual Property Office,17/09/2015,T&S O-seas excl EPOQUE,IT Directorate,Easyjet,H57720150919bipqulhlg,241.58,Not Applicable
Department for Business Innovation and Skills,Intellectual Property Office,17/09/2015,T&S O-seas excl EPOQUE,IT Directorate,Easyjet,H57720150919cgvsqlgcq,237.58,Not Applicable
Department for Business Innovation and Skills,Intellectual Property Office,17/09/2015,T&S O-seas excl EPOQUE,IT Directorate,Easyjet,H57720150919zchjwdwtj,250.49,Not Applicable
Department for Business Innovation and Skills,Intellectual Property Office,04/09/2015,T&S O-seas excl EPOQUE,IT Directorate,Holiday Inn Munich Cit,H57720150909wiuwuftph,372.12,Not Applicable
Department for Business Innovation and Skills,Intellectual Property Office,14/09/2015,Career Development Services,IT Directorate,Act*vmworldeu2015,H57720150916xrjxhchgn,1184.71,Not Applicable
Department for Business Innovation and Skills,Intellectual Property Office,14/09/2015,Career Development Services,IT Directorate,Act*vmworldeu2015,H57720150916jmebhidzc,1184.71,Not Applicable
Department for Business Innovation and Skills,Intellectual Property Office,14/09/2015,Career Development Services,IT Directorate,Act*vmworldeu2015,H57720150916rdhfxsxke,1184.71,Not Applicable
Department for Business Innovation and Skills,Intellectual Property Office,04/09/2015,Career Development Services,IT Directorate,Elastic,H57720150908oimbfujgi,2734.27,Not Applicable
Department for Business Innovation and Skills,Intellectual Property Office,18/09/2015,Career Development Services,IT Directorate,Eb Puppet Camp London,H57720150922bnjpvupcw,49.48,Not Applicable
Department for Business Innovation and Skills,Intellectual Property Office,18/09/2015,Career Development Services,IT Directorate,Eb Puppet Camp London,H57720150922ensvuwcdg,49.48,Not Applicable
Department for Business Innovation and Skills,Intellectual Property Office,24/09/2015,Career Development Services,IT Directorate,Amazon UK Retail,H57720150926cfneosqcd,28.32,Not Applicable
Department for Business Innovation and Skills,Intellectual Property Office,24/09/2015,Career Development Services,IT Directorate,Amazon UK Retail,H57720150926wpnebxjer,30.54,Not Applicable
Department for Business Innovation and Skills,Intellectual Property Office,10/09/2015,Career Development Services,IT Directorate,Crucial.Com,H57720150912zvdjfffpn,453.56,Not Applicable
Department for Business Innovation and Skills,Intellectual Property Office,04/09/2015,T&S UK,IT Directorate,Hrg UK Inm165836787,H57720150910fkwicedyx,5.73,Not Applicable
Department for Business Innovation and Skills,Intellectual Property Office,04/09/2015,T&S UK,IT Directorate,Hrg UK Inm165836763,H57720150910kuqbuimsq,5.73,Not Applicable
Department for Business Innovation and Skills,Intellectual Property Office,04/09/2015,T&S UK,IT Directorate,Aerling,H57720150909gkvdnixgy,100.98,Not Applicable
Department for Business Innovation and Skills,Intellectual Property Office,04/09/2015,T&S UK,IT Directorate,Aerling,H57720150909qccfwmhsk,100.98,Not Applicable
Department for Business Innovation and Skills,Intellectual Property Office,01/09/2015,Software Maintenance,IT Directorate,Aspose Pty Ltd,H57720150903wutipvthz,2684.38,Not Applicable
Department for Business Innovation and Skills,Intellectual Property Office,05/09/2015,Career Development Services,IT Directorate,General Assembly,H57720150908hxacjdwxt,33.2,Not Applicable
Department for Business Innovation and Skills,Intellectual Property Office,08/09/2015,Books,IT Directorate,Amazon UK Retail,H57720150910dwiqtfcmy,79.18,Not Applicable
Department for Business Innovation and Skills,Intellectual Property Office,10/09/2015,Perpetual Licences,IT Directorate,McIsuissegroup,H57720150915pqdbghrnj,126,Not Applicable
Department for Business Innovation and Skills,Intellectual Property Office,16/09/2015,Perpetual Licences,IT Directorate,Aha Labs,H57720150919fcquflful,7893.32,Not Applicable
Department for Business Innovation and Skills,Intellectual Property Office,17/09/2015,Perpetual Licences,IT Directorate,Optimal Workshop,H57720150918dluohxapn,-659.25,Not Applicable
Department for Business Innovation and Skills,Intellectual Property Office,29/09/2015,Entertainment,People Places & Services Directorate,Marksandspencer.Co,H57720151001noyhnuflo,28.9,Not Applicable
Department for Business Innovation and Skills,Intellectual Property Office,28/09/2015,Entertainment,People Places & Services Directorate,Sainsburys S/mkts,H57720150930jfivbkvfq,17.3,Not Applicable
Department for Business Innovation and Skills,Intellectual Property Office,03/09/2015,Entertainment,People Places & Services Directorate,Marksandspencer.Co,H57720150905lwlrebvjx,40.3,Not Applicable
Department for Business Innovation and Skills,Intellectual Property Office,04/09/2015,Career Development Services,Innovation Directorate,Capita Bus Svs-Moto,H57720150908afmudptfz,107.88,Not Applicable
Department for Business Innovation and Skills,Intellectual Property Office,09/09/2015,Books,Innovation Directorate,Amazon UK Retail,H57720150911aenrqiggr,20.59,Not Applicable
Department for Business Innovation and Skills,Intellectual Property Office,04/09/2015,T&S O-seas excl EPOQUE,Innovation Directorate,Hrg UK Inm165836265,H57720150910bkwnlnljt,5.61,Not Applicable
Department for Business Innovation and Skills,Intellectual Property Office,04/09/2015,T&S O-seas excl EPOQUE,Innovation Directorate,Easyjet,H57720150908ztiyvqcbl,80.25,Not Applicable
Department for Business Innovation and Skills,Intellectual Property Office,22/09/2015,Advertising Distribution,Innovation Directorate,Paypal,H57720150924tehnblnpk,12.67,Not Applicable
Department for Business Innovation and Skills,Intellectual Property Office,18/09/2015,Seminars and Confereces,Innovation Directorate,Www.Epo.Org,H57720150922arzjwmnet,225.9,Not Applicable
Department for Business Innovation and Skills,Intellectual Property Office,31/08/2015,T&S O-seas excl EPOQUE,Copyright and Enforcement Directorate,Hotel Sofitel,H57720150903lwrzpjglk,178.23,Not Applicable
Department for Business Innovation and Skills,Intellectual Property Office,04/09/2015,Career Development Services,Copyright and Enforcement Directorate,Capita Bus Svs-Moto,H57720150908afmudptfz,107.88,Not Applicable
Department for Business Innovation and Skills,Intellectual Property Office,04/09/2015,Career Development Services,Copyright and Enforcement Directorate,Capita Bus Svs-Moto,H57720150908afmudptfz,107.88,Not Applicable
Department for Business Innovation and Skills,Intellectual Property Office,22/09/2015,Enforcement Conference,Copyright and Enforcement Directorate,Kall Kwik,H57720150924jxmepdofx,704.4,Not Applicable
Department for Business Innovation and Skills,Intellectual Property Office,22/09/2015,Career Development Services,Copyright and Enforcement Directorate,Capita Bus Svs-Moto,H57720150924pcmhqccxa,107.88,Not Applicable
Department for Business Innovation and Skills,Intellectual Property Office,22/09/2015,Career Development Services,Copyright and Enforcement Directorate,Capita Bus Svs-Moto,H57720150924pcmhqccxa,107.88,Not Applicable
Department for Business Innovation and Skills,Intellectual Property Office,04/09/2015,Career Development Services,Copyright and Enforcement Directorate,Capita Bus Svs-Moto,H57720150908afmudptfz,107.88,Not Applicable
Department for Business Innovation and Skills,Intellectual Property Office,23/09/2015,T&S O-seas excl EPOQUE,Finance Directorate,Hrg UK Inm165851475,H57720150929gfjzohrjr,5.99,Not Applicable
Department for Business Innovation and Skills,Intellectual Property Office,23/09/2015,T&S O-seas excl EPOQUE,Finance Directorate,Easyjet,H57720150925gppupbicq,145.87,Not Applicable
Department for Business Innovation and Skills,Intellectual Property Office,08/09/2015,T&S UK,Finance Directorate,Park Plaza Riverbank,H57720150911vuniduvfk,126,Not Applicable
Department for Business Innovation and Skills,Intellectual Property Office,24/09/2015,Career Development Services,Finance Directorate,Www.Cips.Org,H57720150926yoddpwkub,97.92,Not Applicable
Department for Business Innovation and Skills,Intellectual Property Office,23/09/2015,Career Development Services,Finance Directorate,Www.Cips.Org,H57720150925demmhairn,195.84,Not Applicable
Department for Business Innovation and Skills,Intellectual Property Office,21/09/2015,Career Development Services,Finance Directorate,Usw Commercial Service,H57720150923tycpubmct,434.5,Not Applicable
Department for Business Innovation and Skills,Intellectual Property Office,24/09/2015,Legal Consultancy,Finance Directorate,Www.Cips.Org,H57720150926dystfcsnk,97.92,Not Applicable
Department for Business Innovation and Skills,Intellectual Property Office,28/09/2015,Office Stationery,Finance Directorate,Xma Ltd,H57720150930sbehygokm,70.91,Not Applicable
Department for Business Innovation and Skills,Intellectual Property Office,24/09/2015,Office Stationery,Finance Directorate,Xma Ltd,H57720150926ndimqvysu,38.15,Not Applicable
Department for Business Innovation and Skills,Intellectual Property Office,23/09/2015,Office Stationery,Finance Directorate,Xma Ltd,H57720150925gtnrirpha,319.92,Not Applicable
Department for Business Innovation and Skills,Intellectual Property Office,23/09/2015,Office Stationery,Finance Directorate,Xma Ltd,H57720150925hufrbnepe,272.42,Not Applicable
Department for Business Innovation and Skills,Intellectual Property Office,23/09/2015,Office Stationery,Finance Directorate,Xma Ltd,H57720150925imtlilitx,228.37,Not Applicable
Department for Business Innovation and Skills,Intellectual Property Office,17/09/2015,Office Stationery,Finance Directorate,Xma Ltd,H57720150919lgctfulaj,130.08,Not Applicable
Department for Business Innovation and Skills,Intellectual Property Office,16/09/2015,Office Stationery,Finance Directorate,Xma Ltd,H57720150918ohtpunhqe,38.14,Not Applicable
Department for Business Innovation and Skills,Intellectual Property Office,16/09/2015,Office Stationery,Finance Directorate,Xma Ltd,H57720150918ovvyetwbo,515.16,Not Applicable
Department for Business Innovation and Skills,Intellectual Property Office,15/09/2015,Office Stationery,Finance Directorate,Xma Ltd,H57720150917gidddvpkt,18.74,Not Applicable
Department for Business Innovation and Skills,Intellectual Property Office,11/09/2015,Office Stationery,Finance Directorate,Xma Ltd,H57720150915lcvvldbun,38.14,Not Applicable
Department for Business Innovation and Skills,Intellectual Property Office,11/09/2015,Office Stationery,Finance Directorate,Xma Ltd,H57720150915okkwhhksw,55.09,Not Applicable
Department for Business Innovation and Skills,Intellectual Property Office,11/09/2015,Office Stationery,Finance Directorate,Xma Ltd,H57720150915xhduankxv,55.09,Not Applicable
Department for Business Innovation and Skills,Intellectual Property Office,11/09/2015,Office Stationery,Finance Directorate,Xma Ltd,H57720150915fpykdnjot,212.75,Not Applicable
Department for Business Innovation and Skills,Intellectual Property Office,09/09/2015,Office Stationery,Finance Directorate,Xma Ltd,H57720150911hngpqlyyd,451.59,Not Applicable
Department for Business Innovation and Skills,Intellectual Property Office,09/09/2015,Office Stationery,Finance Directorate,Xma Ltd,H57720150911loxbnzmer,118.63,Not Applicable
Department for Business Innovation and Skills,Intellectual Property Office,09/09/2015,Office Stationery,Finance Directorate,Xma Ltd,H57720150911ropdspiri,374.3,Not Applicable
Department for Business Innovation and Skills,Intellectual Property Office,09/09/2015,Office Stationery,Finance Directorate,Xma Ltd,H57720150911svcptbjcv,515.16,Not Applicable
Department for Business Innovation and Skills,Intellectual Property Office,09/09/2015,Office Stationery,Finance Directorate,Xma Ltd,H57720150911yfwvhmvxx,166.48,Not Applicable
Department for Business Innovation and Skills,Intellectual Property Office,09/09/2015,Office Stationery,Finance Directorate,Xma Ltd,H57720150911beowvbmoe,228.26,Not Applicable
Department for Business Innovation and Skills,Intellectual Property Office,08/09/2015,Office Stationery,Finance Directorate,Xma Ltd,H57720150910tommxgmfm,118.63,Not Applicable
Department for Business Innovation and Skills,Intellectual Property Office,08/09/2015,Office Stationery,Finance Directorate,Xma Ltd,H57720150910ttsxoyhyk,515.16,Not Applicable
Department for Business Innovation and Skills,Intellectual Property Office,08/09/2015,Office Stationery,Finance Directorate,Xma Ltd,H57720150910uyucvqjnr,319.92,Not Applicable
Department for Business Innovation and Skills,Intellectual Property Office,08/09/2015,Office Stationery,Finance Directorate,Xma Ltd,H57720150910xnxpkjzkf,272.42,Not Applicable
Department for Business Innovation and Skills,Intellectual Property Office,03/09/2015,Office Stationery,Finance Directorate,Xma Ltd,H57720150905cytsoknsl,228.31,Not Applicable
Department for Business Innovation and Skills,Intellectual Property Office,09/09/2015,Office Stationery,Finance Directorate,Www.Bhma.Co.Uk,H57720150911keiumzdhp,139.94,Not Applicable
Department for Business Innovation and Skills,Intellectual Property Office,29/09/2015,Legal Consultancy,People Places & Services Directorate,Towergate Prof. Risks,H57720151001buoylpfqx,241,Not Applicable
Department for Business Innovation and Skills,Intellectual Property Office,14/09/2015,Career Development Services,People Places & Services Directorate,Www.Westminster-Briefi,H57720150916toxmocqgx,225,Not Applicable
Department for Business Innovation and Skills,Intellectual Property Office,11/09/2015,Career Development Services,People Places & Services Directorate,Www.Pmgltd.Co.Uk,H57720150915vjuiiovjs,4500,Not Applicable
Department for Business Innovation and Skills,Intellectual Property Office,25/09/2015,Entertainment,People Places & Services Directorate,Amazon UK Marketplace,H57720150929qdtqkdlgq,3.99,Not Applicable
Department for Business Innovation and Skills,Intellectual Property Office,24/09/2015,Entertainment,People Places & Services Directorate,"Amazon Svcs Europe,sar",H57720150926jsyqvuccx,7.9,Not Applicable
Department for Business Innovation and Skills,Intellectual Property Office,24/09/2015,Entertainment,People Places & Services Directorate,Amazon UK Marketplace,H57720150926nsixngcqp,2.56,Not Applicable
Department for Business Innovation and Skills,Intellectual Property Office,23/09/2015,Entertainment,People Places & Services Directorate,Amazon UK Marketplace,H57720150925pjidwjdmb,15.97,Not Applicable
Department for Business Innovation and Skills,Intellectual Property Office,23/09/2015,Entertainment,People Places & Services Directorate,Amazon UK Marketplace,H57720150925zpfhvjdub,5.2,Not Applicable
Department for Business Innovation and Skills,Intellectual Property Office,08/09/2015,Career Development Services,People Places & Services Directorate,Subway,H57720150910sgsjiskbd,52,Not Applicable
Department for Business Innovation and Skills,Intellectual Property Office,04/09/2015,Career Development Services,People Places & Services Directorate,Capita Bus Svs-Moto,H57720150908afmudptfz,107.88,Not Applicable
Department for Business Innovation and Skills,Intellectual Property Office,16/09/2015,Entertainment,People Places & Services Directorate,Asda Superstore 4928,H57720150918rjbnuuudo,3.1,Not Applicable
Department for Business Innovation and Skills,Intellectual Property Office,25/09/2015,Office Stationery,People Places & Services Directorate,Screwfix Direct,H57720150929hreudengm,170.6,Not Applicable
Department for Business Innovation and Skills,Intellectual Property Office,25/09/2015,Office Stationery,People Places & Services Directorate,Boardsdirect.Co.Uk,H57720150929yfsljpuxn,350.4,Not Applicable
Department for Business Innovation and Skills,Intellectual Property Office,23/09/2015,Office Stationery,People Places & Services Directorate,Screwfix Direct,H57720150925sdkvtgodi,49.54,Not Applicable
Department for Business Innovation and Skills,Intellectual Property Office,15/09/2015,Office Stationery,People Places & Services Directorate,Newport Locksmiths Ltd,H57720150917ammdxhoji,60,Not Applicable
Department for Business Innovation and Skills,Intellectual Property Office,11/09/2015,Office Stationery,People Places & Services Directorate,Fruugo,H57720150915ffuvbwtfn,22.97,Not Applicable
Department for Business Innovation and Skills,Intellectual Property Office,10/09/2015,Office Stationery,People Places & Services Directorate,Ao Retail Limited,H57720150912rruyjiuux,477,Not Applicable
Department for Business Innovation and Skills,Intellectual Property Office,10/09/2015,Office Stationery,People Places & Services Directorate,Ao Retail Limited,H57720150912xtvvskrxo,159,Not Applicable
Department for Business Innovation and Skills,Intellectual Property Office,08/09/2015,Office Stationery,People Places & Services Directorate,Www.Barriersdirect.Co.,H57720150910magndkcyp,485.7,Not Applicable
Department for Business Innovation and Skills,Intellectual Property Office,04/09/2015,Office Stationery,People Places & Services Directorate,Screwfix Direct,H57720150908fsbdybvno,43.17,Not Applicable
Department for Business Innovation and Skills,Intellectual Property Office,04/09/2015,Office Stationery,People Places & Services Directorate,Www.Eurekadirect.Co.Uk,H57720150908ptmjvvfwi,58.44,Not Applicable
Department for Business Innovation and Skills,Intellectual Property Office,03/09/2015,Office Stationery,People Places & Services Directorate,South Wales Suppliers Lt,H57720150905utmtxgnmo,30.6,Not Applicable
Department for Business Innovation and Skills,Intellectual Property Office,17/09/2015,Legal Consultancy,People Places & Services Directorate,Paypal,H57720150919fugjdyxph,375,Not Applicable
Department for Business Innovation and Skills,Intellectual Property Office,08/09/2015,Entertainment,People Places & Services Directorate,W M Morrison Plc,H57720150910xmdiitxcv,10.13,Not Applicable
Department for Business Innovation and Skills,Intellectual Property Office,28/09/2015,Career Development Services,People Places & Services Directorate,Training Byte Size Ltd,H57720150930bunzemzlu,168,Not Applicable
Department for Business Innovation and Skills,Intellectual Property Office,08/09/2015,Legal Consultancy,People Places & Services Directorate,Www.Apm.Org.Uk,H57720150910bkvzcjyhy,390,Not Applicable
Department for Business Innovation and Skills,Intellectual Property Office,07/09/2015,Office Stationery,People Places & Services Directorate,South Wales Suppliers Lt,H57720150909cmbtohljd,135,Not Applicable
Department for Business Innovation and Skills,Intellectual Property Office,16/09/2015, 2 Minute Smile,People Places & Services Directorate,Amazon UK Marketplace,H57720150918nclhgsmhu,4.95,Not Applicable
Department for Business Innovation and Skills,Intellectual Property Office,24/09/2015,Other,People Places & Services Directorate,Argos Retail Group,H57720150926dwgrjjjnj,119.94,Not Applicable
Department for Business Innovation and Skills,Intellectual Property Office,25/09/2015,Office Stationery,People Places & Services Directorate,Business Ind Solutions,H57720150929slvmdsisz,281.76,Not Applicable
Department for Business Innovation and Skills,Intellectual Property Office,21/09/2015,Office Stationery,People Places & Services Directorate,Business Ind Solutions,H57720150923ikoyfkvuo,950.94,Not Applicable
Department for Business Innovation and Skills,Intellectual Property Office,21/09/2015,Office Stationery,People Places & Services Directorate,Business Ind Solutions,H57720150923kfbkloqbk,105.66,Not Applicable
Department for Business Innovation and Skills,Intellectual Property Office,15/09/2015,Office Stationery,People Places & Services Directorate,H.C.Slingsby Plc,H57720150917mpykinmnv,322.8,Not Applicable
Department for Business Innovation and Skills,Intellectual Property Office,23/09/2015,Mailing Supplies,People Places & Services Directorate,The Barcode Warehouse,H57720150925poqeewngs,215.99,Not Applicable
Department for Business Innovation and Skills,Intellectual Property Office,29/09/2015,Minor Works-Goods,People Places & Services Directorate,Nukey,H57720151001tvyfykrvk,80.04,Not Applicable
Department for Business Innovation and Skills,Intellectual Property Office,14/09/2015,Office Stationery,People Places & Services Directorate,Asda Superstore,H57720150916dyewuayyl,13.75,Not Applicable
Department for Business Innovation and Skills,Intellectual Property Office,22/09/2015,Office Stationery,People Places & Services Directorate,Screwfix Direct,H57720150924fkvbqrzca,31.34,Not Applicable
Department for Business Innovation and Skills,Intellectual Property Office,24/09/2015,Office Stationery,People Places & Services Directorate,Amazon UK Retail,H57720150926jhidjrjnw,21.89,Not Applicable
Department for Business Innovation and Skills,Intellectual Property Office,22/09/2015,Office Stationery,People Places & Services Directorate,Healthy Workstations Ltd,H57720150924ixgvwbtvn,95.94,Not Applicable
Department for Business Innovation and Skills,Intellectual Property Office,22/09/2015,Office Stationery,People Places & Services Directorate,Healthy Workstations Ltd,H57720150924nbyqgxkrc,216,Not Applicable
Department for Business Innovation and Skills,Intellectual Property Office,18/09/2015,Office Stationery,People Places & Services Directorate,Boardsdirect.Co.Uk,H57720150922igaorsmcs,204,Not Applicable
Department for Business Innovation and Skills,Intellectual Property Office,20/09/2015,Office Stationery,People Places & Services Directorate,Amazon UK Marketplace,H57720150922ktqbjibvy,40.07,Not Applicable
Department for Business Innovation and Skills,Intellectual Property Office,16/09/2015,Office Stationery,People Places & Services Directorate,Healthy Workstations Ltd,H57720150918wzysqckfv,150,Not Applicable
Department for Business Innovation and Skills,Intellectual Property Office,16/09/2015,Office Stationery,People Places & Services Directorate,Amazon UK Marketplace,H57720150918zbyzoyuec,23.69,Not Applicable
Department for Business Innovation and Skills,Intellectual Property Office,14/09/2015,Office Stationery,People Places & Services Directorate,Amazon UK Marketplace,H57720150916urgnrytpo,20.99,Not Applicable
Department for Business Innovation and Skills,Intellectual Property Office,11/09/2015,Office Stationery,People Places & Services Directorate,Amazon UK Retail,H57720150915iucjdpgam,21.89,Not Applicable
Department for Business Innovation and Skills,Intellectual Property Office,12/09/2015,Office Stationery,People Places & Services Directorate,Amazon UK Marketplace,H57720150915mrlaccbst,49.9,Not Applicable
Department for Business Innovation and Skills,Intellectual Property Office,12/09/2015,Office Stationery,People Places & Services Directorate,Amazon UK Marketplace,H57720150915xycatkgvg,22.83,Not Applicable
Department for Business Innovation and Skills,Intellectual Property Office,09/09/2015,Office Stationery,People Places & Services Directorate,Amazon UK Marketplace,H57720150911mminaryfx,14.99,Not Applicable
Department for Business Innovation and Skills,Intellectual Property Office,08/09/2015,Office Stationery,People Places & Services Directorate,Boardsdirect.Co.Uk,H57720150910pldjumhkk,204,Not Applicable
Department for Business Innovation and Skills,Intellectual Property Office,02/09/2015,Office Stationery,People Places & Services Directorate,"Amazon Svcs Europe,sar",H57720150904gzmopttrx,18.38,Not Applicable
Department for Business Innovation and Skills,Intellectual Property Office,23/09/2015,Career Development Services,People Places & Services Directorate,Amazon UK Marketplace,H57720150925siggxienb,65.7,Not Applicable
Department for Business Innovation and Skills,Intellectual Property Office,23/09/2015,Career Development Services,People Places & Services Directorate,Asda Superstore 4928,H57720150925yehlbrukj,9.4,Not Applicable
Department for Business Innovation and Skills,Intellectual Property Office,15/09/2015,T&S UK,International Policy Directorate,Www.Addisonlee.Com,H57720150917hqxfkzmol,14.9,Not Applicable
Department for Business Innovation and Skills,Intellectual Property Office,15/09/2015,T&S UK,International Policy Directorate,Www.Addisonlee.Com,H57720150917sjsflkqgq,14.9,Not Applicable
Department for Business Innovation and Skills,Intellectual Property Office,09/09/2015,T&S O-seas excl EPOQUE,International Policy Directorate,Easyjet,H57720150911rijmnrcvq,82.21,Not Applicable
Department for Business Innovation and Skills,Intellectual Property Office,23/09/2015,T&S UK,International Policy Directorate,Hilton,H57720150925qsvynhjhc,182,Not Applicable
Department for Business Innovation and Skills,Intellectual Property Office,04/09/2015,Career Development Services,International Policy Directorate,Capita Bus Svs-Moto,H57720150908afmudptfz,107.88,Not Applicable
Department for Business Innovation and Skills,Intellectual Property Office,04/09/2015,Entertainment,International Policy Directorate,Buyabattery Co Uk,H57720150908qrulxoyvr,7.35,Not Applicable
Department for Business Innovation and Skills,Intellectual Property Office,04/09/2015,Entertainment,International Policy Directorate,Www.Intecoffice.Co.Uk,H57720150908umeevlntp,134.6,Not Applicable
Department for Business Innovation and Skills,Intellectual Property Office,28/09/2015,Career Development Services,Patents Directorate,Training Byte Size Ltd,H57720150930gxcmiopcp,168,Not Applicable
Department for Business Innovation and Skills,Intellectual Property Office,28/09/2015,Career Development Services,Patents Directorate,Training Byte Size Ltd,H57720150930ntuqmykdq,222,Not Applicable
Department for Business Innovation and Skills,Intellectual Property Office,21/09/2015,T&S O-seas excl EPOQUE,Patents Directorate,Nec Parking,H57720150923ycknrrpwq,20,Not Applicable
Department for Business Innovation and Skills,Intellectual Property Office,21/09/2015,T&S O-seas excl EPOQUE,Patents Directorate,Nec Parking,H57720150923yzqqyowpv,20,Not Applicable
Department for Business Innovation and Skills,Intellectual Property Office,16/09/2015,T&S O-seas excl EPOQUE,Patents Directorate,Hrg UK Inm165846102,H57720150922flxpcdkof,9.35,Not Applicable
Department for Business Innovation and Skills,Intellectual Property Office,16/09/2015,T&S O-seas excl EPOQUE,Patents Directorate,Easyjet,H57720150919wxwufqqnr,23.37,Not Applicable
Department for Business Innovation and Skills,Intellectual Property Office,02/09/2015,T&S O-seas excl EPOQUE,Patents Directorate,Hrg UK Inm165833707,H57720150908nuqvfmbdu,5.76,Not Applicable
Department for Business Innovation and Skills,Intellectual Property Office,02/09/2015,T&S O-seas excl EPOQUE,Patents Directorate,Easyjet,H57720150904gmccjnmkb,107.4,Not Applicable
Department for Business Innovation and Skills,Intellectual Property Office,22/09/2015,Career Development Services,Patents Directorate,Capita Bus Svs-Moto,H57720150924pcmhqccxa,107.88,Not Applicable
Department for Business Innovation and Skills,Intellectual Property Office,22/09/2015,Career Development Services,Patents Directorate,Capita Bus Svs-Moto,H57720150924pcmhqccxa,107.88,Not Applicable
Department for Business Innovation and Skills,Intellectual Property Office,22/09/2015,Career Development Services,Patents Directorate,Capita Bus Svs-Moto,H57720150924pcmhqccxa,107.88,Not Applicable
Department for Business Innovation and Skills,Intellectual Property Office,22/09/2015,Career Development Services,Patents Directorate,Capita Bus Svs-Moto,H57720150924pcmhqccxa,107.88,Not Applicable
Department for Business Innovation and Skills,Intellectual Property Office,29/09/2015,Career Development Services,Patents Directorate,Wp-The Foundry Vis,H57720151001bhppygolu,1680,Not Applicable
Department for Business Innovation and Skills,Intellectual Property Office,15/09/2015,T&S O-seas excl EPOQUE,Patents Directorate,Eb Bmva Technical Mee,H57720150917usmyhocjr,20,Not Applicable
Department for Business Innovation and Skills,Intellectual Property Office,09/09/2015,T&S UK,Patents Directorate,Hotel Meridien,H57720150912vdikcjrfx,436.23,Not Applicable
Department for Business Innovation and Skills,Intellectual Property Office,10/09/2015,T&S UK,Patents Directorate,Bristol Airport Limite,H57720150912xnzqwpiwc,49.19,Not Applicable
Department for Business Innovation and Skills,Intellectual Property Office,21/09/2015,Placement Fees,Patents Directorate,Hrg UK Inm165849069,H57720150925mpciflznj,5.74,Not Applicable
Department for Business Innovation and Skills,Intellectual Property Office,21/09/2015,Placement Fees,Patents Directorate,Easyjet,H57720150925ovpmfigzn,103.58,Not Applicable
Department for Business Innovation and Skills,Intellectual Property Office,18/09/2015,Placement Fees,Patents Directorate,Hrg UK Inm165848502,H57720150924uwhghlcvz,5.75,Not Applicable
Department for Business Innovation and Skills,Intellectual Property Office,21/09/2015,Placement Fees,Patents Directorate,Travelodge Website,H57720150923yttwgggvy,118,Not Applicable
Department for Business Innovation and Skills,Intellectual Property Office,18/09/2015,Placement Fees,Patents Directorate,Easyjet,H57720150922rhswemmcc,105.65,Not Applicable
Department for Business Innovation and Skills,Intellectual Property Office,17/09/2015,Placement Fees,Patents Directorate,Bristol Airport Limite,H57720150919iurenttfm,59.45,Not Applicable
Department for Business Innovation and Skills,Intellectual Property Office,07/09/2015,Placement Fees,Patents Directorate,Hrg UK Inm165837442,H57720150911klcnlfzhf,14.84,Not Applicable
Department for Business Innovation and Skills,Intellectual Property Office,07/09/2015,Placement Fees,Patents Directorate,Hrg UK Inm165837443,H57720150911sqcuvoogr,15.25,Not Applicable
Department for Business Innovation and Skills,Intellectual Property Office,07/09/2015,Placement Fees,Patents Directorate,Sainsburys S/mkts,H57720150909xcjymneql,17.5,Not Applicable
Department for Business Innovation and Skills,Intellectual Property Office,07/09/2015,Placement Fees,Patents Directorate,Easyjet,H57720150909nmklluqgi,46.2,Not Applicable
Department for Business Innovation and Skills,Intellectual Property Office,07/09/2015,Placement Fees,Patents Directorate,Easyjet,H57720150909rlcttqujl,46.2,Not Applicable
Department for Business Innovation and Skills,Intellectual Property Office,07/09/2015,Placement Fees,Patents Directorate,Www.Flybe.Coeqly58,H57720150909wppsosiuy,44.99,Not Applicable
Department for Business Innovation and Skills,Intellectual Property Office,03/09/2015,Placement Fees,Patents Directorate,Bristol Airport Limite,H57720150905kkjfudsxn,38.94,Not Applicable
Department for Business Innovation and Skills,Intellectual Property Office,10/09/2015,Books Newspaper Pub(central),Patents Directorate,Macmillan Publishers L,H57720150912awvowppwm,253,Not Applicable
Department for Business Innovation and Skills,Intellectual Property Office,22/09/2015,Overseas Patent Specifications,Patents Directorate,Spie-Intl Society Opt En,H57720150924etapydotl,12.02,Not Applicable
Department for Business Innovation and Skills,Intellectual Property Office,26/09/2015,CIMS Printing,Patents Directorate,Intellectual Prop. Ofc,H57720150929nfvuwhhnm,30,Not Applicable
Department for Business Innovation and Skills,Intellectual Property Office,26/09/2015,CIMS Printing,Patents Directorate,Intellectual Prop. Ofc,H57720150929pdkstdznp,30,Not Applicable
Department for Business Innovation and Skills,Intellectual Property Office,04/09/2015,Entertainment,International Policy Directorate,Eden Caterers Ltd,H57720150908dtkdrmzfm,1729.3,Not Applicable
Department for Business Innovation and Skills,Intellectual Property Office,25/09/2015,T&S O-seas excl EPOQUE,International Policy Directorate,Hrg UK Inm165853679,H57720151001bqbfdhewm,5.89,Not Applicable
Department for Business Innovation and Skills,Intellectual Property Office,25/09/2015,T&S O-seas excl EPOQUE,International Policy Directorate,Easyjet,H57720150929xnhxvwuhp,129.65,Not Applicable
Department for Business Innovation and Skills,Intellectual Property Office,23/09/2015,T&S O-seas excl EPOQUE,International Policy Directorate,Heathrow Airport,H57720150925pnqmmfsfk,31.9,Not Applicable
Department for Business Innovation and Skills,Intellectual Property Office,01/09/2015,T&S UK,International Policy Directorate,Bristol Airport Limite,H57720150903ccdbtiwri,27.66,Not Applicable
Department for Business Innovation and Skills,Intellectual Property Office,01/09/2015,T&S UK,International Policy Directorate,Heathrow Airport,H57720150903zvtqlqbjh,119.9,Not Applicable
Department for Business Innovation and Skills,Intellectual Property Office,24/09/2015,Legal Consultancy,International Policy Directorate,Cloudflare,H57720150929rtmegjkxm,16.98,Not Applicable
Department for Business Innovation and Skills,Intellectual Property Office,07/09/2015,Legal Consultancy,International Policy Directorate,Bugherd Pty Ltd,H57720150909bwivfazhe,33.12,Not Applicable
Department for Business Innovation and Skills,Intellectual Property Office,01/09/2015,T&S UK,International Policy Directorate,Bristol Airport Limite,H57720150903fjcptyejq,-24.29,Not Applicable
Department for Business Innovation and Skills,Intellectual Property Office,10/09/2015,Legal Consultancy,International Policy Directorate,Dsdm Consortium,H57720150912dvdobutqq,624,Not Applicable
Department for Business Innovation and Skills,Intellectual Property Office,04/09/2015,Career Development Services,International Policy Directorate,Capita Bus Svs-Moto,H57720150908afmudptfz,107.88,Not Applicable
Department for Business Innovation and Skills,Intellectual Property Office,07/09/2015,Office Furniture,People Places & Services Directorate,Amazon UK Marketplace,H57720150909gpuhsftqb,194.97,Not Applicable
Department for Business Innovation and Skills,Intellectual Property Office,04/09/2015,Office Furniture,People Places & Services Directorate,Amazon UK Marketplace,H57720150908vbvecpiax,433.59,Not Applicable
Department for Business Innovation and Skills,Intellectual Property Office,25/09/2015,T&S O-seas excl EPOQUE,Trade Marks Directorate,Hampton By Hilton,H57720150929kukgiegqk,168,Not Applicable
Department for Business Innovation and Skills,Intellectual Property Office,25/09/2015,T&S O-seas excl EPOQUE,Trade Marks Directorate,Hie Newport,H57720150929oicgcljps,249.98,Not Applicable
Department for Business Innovation and Skills,Intellectual Property Office,07/09/2015,T&S O-seas excl EPOQUE,Trade Marks Directorate,Hrg UK Inm165837549,H57720150911cnnkbnstf,5.4,Not Applicable
Department for Business Innovation and Skills,Intellectual Property Office,07/09/2015,T&S O-seas excl EPOQUE,Trade Marks Directorate,Hrg UK Inm165837481,H57720150911jxsbodkbf,5.4,Not Applicable
Department for Business Innovation and Skills,Intellectual Property Office,07/09/2015,T&S O-seas excl EPOQUE,Trade Marks Directorate,Hrg UK Inm165837548,H57720150911pejeukxor,5.39,Not Applicable
Department for Business Innovation and Skills,Intellectual Property Office,07/09/2015,T&S O-seas excl EPOQUE,Trade Marks Directorate,Ryanair,H57720150910qrnaohxjv,83.63,Not Applicable
Department for Business Innovation and Skills,Intellectual Property Office,07/09/2015,T&S O-seas excl EPOQUE,Trade Marks Directorate,Easyjet,H57720150909ywbljbsmg,151.01,Not Applicable
Department for Business Innovation and Skills,Intellectual Property Office,25/09/2015,Career Development Services,Trade Marks Directorate,Opp Ltd Sterling Vt,H57720150929clrxhjyko,322.56,Not Applicable
Department for Business Innovation and Skills,Intellectual Property Office,22/09/2015,Career Development Services,Trade Marks Directorate,Capita Bus Svs-Moto,H57720150924pcmhqccxa,107.88,Not Applicable
Department for Business Innovation and Skills,Intellectual Property Office,09/09/2015,T&S UK,Trade Marks Directorate,Travelodge Agent,H57720150911yrhbqypwm,-102.65,Not Applicable
Department for Business Innovation and Skills,Intellectual Property Office,09/09/2015,T&S UK,Trade Marks Directorate,Travelodge Agent,H57720150911fxxowfsgv,-102.65,Not Applicable
Department for Business Innovation and Skills,Intellectual Property Office,09/09/2015,T&S UK,Trade Marks Directorate,Travelodge Agent,H57720150911lonzjvxbp,-102.65,Not Applicable
Department for Business Innovation and Skills,Intellectual Property Office,09/09/2015,T&S UK,Trade Marks Directorate,Travelodge Agent,H57720150911lvkwchedj,-102.65,Not Applicable
Department for Business Innovation and Skills,Intellectual Property Office,09/09/2015,T&S UK,Trade Marks Directorate,Travelodge Agent,H57720150911wwfoaaepb,-102.65,Not Applicable
Department for Business Innovation and Skills,Intellectual Property Office,28/08/2015,T&S O-seas excl EPOQUE,Trade Marks Directorate,Hrg UK Inm165831636,H57720150904egjvkugdh,5.95,Not Applicable
Department for Business Innovation and Skills,Intellectual Property Office,28/08/2015,T&S O-seas excl EPOQUE,Trade Marks Directorate,Hrg UK Inm165831623,H57720150904trntnxijx,5.95,Not Applicable
Department for Business Innovation and Skills,Intellectual Property Office,05/09/2015,Books,Trade Marks Directorate,Amazon UK Retail,H57720150908qvogfyrjk,125,Not Applicable
Department for Business Innovation and Skills,Intellectual Property Office,25/09/2015,Career Development Services,Trade Marks Directorate,Opp Ltd Sterling Vt,H57720150929clrxhjyko,322.56,Not Applicable
Department for Business Innovation and Skills,Intellectual Property Office,22/09/2015,Career Development Services,Trade Marks Directorate,Capita Bus Svs-Moto,H57720150924pcmhqccxa,107.88,Not Applicable
Department for Business Innovation and Skills,Intellectual Property Office,22/09/2015,Career Development Services,Trade Marks Directorate,Capita Bus Svs-Moto,H57720150924pcmhqccxa,107.88,Not Applicable
Department for Business Innovation and Skills,Intellectual Property Office,22/09/2015,Career Development Services,Trade Marks Directorate,Capita Bus Svs-Moto,H57720150924pcmhqccxa,107.88,Not Applicable
Department for Business Innovation and Skills,Intellectual Property Office,04/09/2015,Career Development Services,Trade Marks Directorate,Capita Bus Svs-Moto,H57720150908afmudptfz,107.88,Not Applicable
Department for Business Innovation and Skills,Intellectual Property Office,04/09/2015,Career Development Services,Trade Marks Directorate,Capita Bus Svs-Moto,H57720150908afmudptfz,107.88,Not Applicable
Department for Business Innovation and Skills,Intellectual Property Office,04/09/2015,Career Development Services,Trade Marks Directorate,Capita Bus Svs-Moto,H57720150908afmudptfz,107.88,Not Applicable
Department for Business Innovation and Skills,Intellectual Property Office,09/09/2015,T&S O-seas excl EPOQUE,Trade Marks Directorate,Hotel Melia Alicante,H57720150911delfrbgew,113.8,Not Applicable
Department for Business Innovation and Skills,Intellectual Property Office,09/09/2015,T&S O-seas excl EPOQUE,Trade Marks Directorate,Hotel Melia Alicante,H57720150911eirudmufb,113.8,Not Applicable
Department for Business Innovation and Skills,Intellectual Property Office,09/09/2015,T&S O-seas excl EPOQUE,Trade Marks Directorate,Hotel Melia Alicante,H57720150911nelkagxqm,113.8,Not Applicable
Department for Business Innovation and Skills,Intellectual Property Office,09/09/2015,T&S O-seas excl EPOQUE,Trade Marks Directorate,Hotel Melia Alicante,H57720150911qyfpffwdu,113.8,Not Applicable
Department for Business Innovation and Skills,Intellectual Property Office,05/09/2015,T&S O-seas excl EPOQUE,Trade Marks Directorate,Hotel Melia Alicante,H57720150908fmqbpvkqp,114.49,Not Applicable
Department for Business Innovation and Skills,Intellectual Property Office,05/09/2015,T&S O-seas excl EPOQUE,Trade Marks Directorate,Hotel Melia Alicante,H57720150908kpomdbdlm,114.49,Not Applicable
Department for Business Innovation and Skills,Intellectual Property Office,05/09/2015,T&S O-seas excl EPOQUE,Trade Marks Directorate,Hotel Melia Alicante,H57720150908ujqirisrr,114.49,Not Applicable
Department for Business Innovation and Skills,Intellectual Property Office,05/09/2015,T&S O-seas excl EPOQUE,Trade Marks Directorate,Hotel Melia Alicante,H57720150908xxeknabgx,114.49,Not Applicable
Department for Business Innovation and Skills,Intellectual Property Office,03/09/2015,T&S O-seas excl EPOQUE,Trade Marks Directorate,Hrg UK Inm165835509,H57720150909vewqhewdl,5.86,Not Applicable
Department for Business Innovation and Skills,Intellectual Property Office,01/09/2015,T&S O-seas excl EPOQUE,Trade Marks Directorate,Hrg UK Inm165833240,H57720150905wskwxrplg,5.75,Not Applicable
Department for Business Innovation and Skills,Intellectual Property Office,01/09/2015,T&S O-seas excl EPOQUE,Trade Marks Directorate,Vueling Airlines,H57720150903qyxlozcqo,128.45,Not Applicable
Department for Business Innovation and Skills,Intellectual Property Office,01/09/2015,T&S O-seas excl EPOQUE,Trade Marks Directorate,Www.Flybe.Coa150fl,H57720150903uecvpityo,104.99,Not Applicable
Department for Business Innovation and Skills,Intellectual Property Office,25/09/2015,Career Development Services,Trade Marks Directorate,Opp Ltd Sterling Vt,H57720150929clrxhjyko,322.56,Not Applicable
Department for Business Innovation and Skills,Intellectual Property Office,29/09/2015,Software Maintenance,Trade Marks Directorate,The Intellectual Property,H57720151001chdtjnxco,60,Not Applicable
Department for Business Innovation and Skills,Intellectual Property Office,26/09/2015,Software Maintenance,Trade Marks Directorate,The Intellectual Property,H57720150929mespyvpqs,40,Not Applicable
Department for Business Innovation and Skills,Intellectual Property Office,26/09/2015,Software Maintenance,Trade Marks Directorate,The Intellectual Property,H57720150929mrwjgnqjj,60,Not Applicable
Department for Business Innovation and Skills,Intellectual Property Office,26/09/2015,Software Maintenance,Trade Marks Directorate,The Intellectual Property,H57720150929npvjdivyn,60,Not Applicable
Department for Business Innovation and Skills,Intellectual Property Office,26/09/2015,Software Maintenance,Trade Marks Directorate,The Intellectual Property,H57720150929vsojpkajv,60,Not Applicable
Department for Business Innovation and Skills,Intellectual Property Office,25/09/2015,Career Development Services,Trade Marks Directorate,Opp Ltd Sterling Vt,H57720150929clrxhjyko,322.56,Not Applicable
Department for Business Innovation and Skills,Intellectual Property Office,16/09/2015,T&S O-seas excl EPOQUE,Trade Marks Directorate,Hrg UK Inm165846107,H57720150922zrjxqnjew,5.71,Not Applicable
Department for Business Innovation and Skills,Intellectual Property Office,16/09/2015,T&S O-seas excl EPOQUE,Trade Marks Directorate,Www.Flybe.Coe65bjf,H57720150918eonpwztdn,97.99,Not Applicable
Department for Business Innovation and Skills,Intellectual Property Office,14/09/2015,T&S O-seas excl EPOQUE,Trade Marks Directorate,Hrg UK Inm165843078,H57720150918swjqwjolx,6.29,Not Applicable
Department for Business Innovation and Skills,Intellectual Property Office,14/09/2015,T&S O-seas excl EPOQUE,Trade Marks Directorate,Easyjet,H57720150916hpannxhry,195.41,Not Applicable
Department for Business Innovation and Skills,Intellectual Property Office,03/09/2015,T&S O-seas excl EPOQUE,Trade Marks Directorate,Hrg UK Inm165835756,H57720150909gxwfzpgii,5.67,Not Applicable
Department for Business Innovation and Skills,Intellectual Property Office,03/09/2015,T&S O-seas excl EPOQUE,Trade Marks Directorate,Hrg UK Inm165835382,H57720150909vdoftbygu,5.71,Not Applicable
Department for Business Innovation and Skills,Intellectual Property Office,03/09/2015,T&S O-seas excl EPOQUE,Trade Marks Directorate,Easyjet,H57720150905qhlkrjlkv,98.22,Not Applicable
Department for Business Innovation and Skills,Intellectual Property Office,03/09/2015,T&S O-seas excl EPOQUE,Trade Marks Directorate,Easyjet,H57720150905rpaegqbsi,94.17,Not Applicable
Department for Business Innovation and Skills,Intellectual Property Office,25/09/2015,Career Development Services,Trade Marks Directorate,Opp Ltd Sterling Vt,H57720150929clrxhjyko,322.56,Not Applicable
Department for Business Innovation and Skills,Intellectual Property Office,03/09/2015,Accommodation,People Places & Services Directorate,Glazing Refurbishment Co.,1092,113904,Not Applicable
Department for Business Innovation and Skills,Intellectual Property Office,21/09/2015,Accommodation,People Places & Services Directorate,Kemp Construction Ltd,6111,18367.2,Not Applicable
Department for Business Innovation and Skills,Intellectual Property Office,07/09/2015,Accommodation,People Places & Services Directorate,Wastesavers Ltd,12713,132.29,Not Applicable
Department for Business Innovation and Skills,Intellectual Property Office,10/09/2015,Accommodation,People Places & Services Directorate,Rushar Ltd,13954,710.4,Not Applicable
Department for Business Innovation and Skills,Intellectual Property Office,07/09/2015,Accommodation,People Places & Services Directorate,Supply Plus Limited,22673,1428,Not Applicable
Department for Business Innovation and Skills,Intellectual Property Office,08/09/2015,Accommodation,People Places & Services Directorate,First Investments Ltd,77626,21000,Not Applicable
Department for Business Innovation and Skills,Intellectual Property Office,08/09/2015,Accommodation,People Places & Services Directorate,First Investments Ltd,77627,979.51,Not Applicable
Department for Business Innovation and Skills,Intellectual Property Office,21/09/2015,Accommodation,People Places & Services Directorate,Thomas Waste Management Ltd,138382,306,Not Applicable
Department for Business Innovation and Skills,Intellectual Property Office,08/09/2015,Accommodation,People Places & Services Directorate,EDF Energy 1 Ltd,752958,26211.97,Not Applicable
Department for Business Innovation and Skills,Intellectual Property Office,15/09/2015,Accommodation,People Places & Services Directorate,EDF Energy 1 Ltd,769420,1205.22,Not Applicable
Department for Business Innovation and Skills,Intellectual Property Office,09/09/2015,Accommodation,People Places & Services Directorate,Office for National Statistics,1030632,171801.6,Not Applicable
Department for Business Innovation and Skills,Intellectual Property Office,09/09/2015,Accommodation,People Places & Services Directorate,Office for National Statistics,1030632,200662.8,Not Applicable
Department for Business Innovation and Skills,Intellectual Property Office,09/09/2015,Accommodation,People Places & Services Directorate,Office for National Statistics,1030633,171801.6,Not Applicable
Department for Business Innovation and Skills,Intellectual Property Office,09/09/2015,Accommodation,People Places & Services Directorate,Office for National Statistics,1030633,125089.2,Not Applicable
Department for Business Innovation and Skills,Intellectual Property Office,09/09/2015,Accommodation,People Places & Services Directorate,Office for National Statistics,1030633,75573.6,Not Applicable
Department for Business Innovation and Skills,Intellectual Property Office,07/09/2015,Accommodation,People Places & Services Directorate,Days Rental,1562709,252,Not Applicable
Department for Business Innovation and Skills,Intellectual Property Office,15/09/2015,Accommodation,People Places & Services Directorate,Corona Energy,10428742,585.66,Not Applicable
Department for Business Innovation and Skills,Intellectual Property Office,11/09/2015,Accommodation,People Places & Services Directorate,Eversheds Solicitors LLP,91410269,629,Not Applicable
Department for Business Innovation and Skills,Intellectual Property Office,15/09/2015,Accommodation,People Places & Services Directorate,Dwr Cymru Cyf,6040772646,689.55,Not Applicable
Department for Business Innovation and Skills,Intellectual Property Office,11/09/2015,Accommodation,People Places & Services Directorate,Department For Business Innovation & Ski,6.15E+11,196999.59,Not Applicable
Department for Business Innovation and Skills,Intellectual Property Office,11/09/2015,Accommodation,People Places & Services Directorate,Department For Business Innovation & Ski,6.15E+11,20356.16,Not Applicable
Department for Business Innovation and Skills,Intellectual Property Office,09/09/2015,Accommodation,People Places & Services Directorate,Department For Business Innovation & Ski,6.15E+11,24998.75,Not Applicable
Department for Business Innovation and Skills,Intellectual Property Office,25/09/2015,Accommodation,People Places & Services Directorate,Mitie Facilities Services Ltd,100/91046553,2298.91,Not Applicable
Department for Business Innovation and Skills,Intellectual Property Office,21/09/2015,Accommodation,People Places & Services Directorate,Mitie Facilities Services Ltd,100/91054617,8320.9,Not Applicable
Department for Business Innovation and Skills,Intellectual Property Office,24/09/2015,Accommodation,People Places & Services Directorate,SIG TRADING LTD,7033-18198196,1767.34,Not Applicable
Department for Business Innovation and Skills,Intellectual Property Office,22/09/2015,Accommodation,People Places & Services Directorate,SIG TRADING LTD,7033-18198197,135.42,Not Applicable
Department for Business Innovation and Skills,Intellectual Property Office,22/09/2015,Accommodation,People Places & Services Directorate,SIG TRADING LTD,7033-18204920,145.75,Not Applicable
Department for Business Innovation and Skills,Intellectual Property Office,30/09/2015,Accommodation,People Places & Services Directorate,SIG TRADING LTD,7033-18213702,263.38,Not Applicable
Department for Business Innovation and Skills,Intellectual Property Office,28/09/2015,Accommodation,People Places & Services Directorate,Energy Assets Ltd,A20150085,37.2,Not Applicable
Department for Business Innovation and Skills,Intellectual Property Office,30/09/2015,Accommodation,People Places & Services Directorate,Cofely Workplace Ltd,BI091515,1499.4,Not Applicable
Department for Business Innovation and Skills,Intellectual Property Office,25/09/2015,Accommodation,People Places & Services Directorate,Cofely Workplace Ltd,BI091516,825.89,Not Applicable
Department for Business Innovation and Skills,Intellectual Property Office,21/09/2015,Accommodation,People Places & Services Directorate,Austin-Smith:Lord LLP,C15/061.06,2460,Not Applicable
Department for Business Innovation and Skills,Intellectual Property Office,08/09/2015,Accommodation,People Places & Services Directorate,Wagstaff Interiors Group,I101584,152010.52,Not Applicable
Department for Business Innovation and Skills,Intellectual Property Office,07/09/2015,Accommodation,People Places & Services Directorate,Magscapes Ltd,INV-2146,2926.8,Not Applicable
Department for Business Innovation and Skills,Intellectual Property Office,17/09/2015,Accommodation,People Places & Services Directorate,Leasedrive Velo Rental Management Ltd,RHI01424389,116.64,Not Applicable
Department for Business Innovation and Skills,Intellectual Property Office,17/09/2015,Accommodation,People Places & Services Directorate,Leasedrive Velo Rental Management Ltd,RHI01426395,31.13,Not Applicable
Department for Business Innovation and Skills,Intellectual Property Office,23/09/2015,Accommodation,People Places & Services Directorate,Leasedrive Velo Rental Management Ltd,RHI01448346,65.16,Not Applicable
Department for Business Innovation and Skills,Intellectual Property Office,24/09/2015,Accommodation,People Places & Services Directorate,Leasedrive Velo Rental Management Ltd,RHI01449780,16.37,Not Applicable
Department for Business Innovation and Skills,Intellectual Property Office,21/09/2015,Accommodation,People Places & Services Directorate,Senator International Ltd,S01257464,139.34,Not Applicable
Department for Business Innovation and Skills,Intellectual Property Office,15/09/2015,Accommodation,People Places & Services Directorate,Senator International Ltd,S01261677,357.66,Not Applicable
Department for Business Innovation and Skills,Intellectual Property Office,16/09/2015,Incorporations - Standard,Patents Directorate,Personal expenses name witheld,J696580,250,Not Applicable
Department for Business Innovation and Skills,Intellectual Property Office,16/09/2015,Incorporations - Standard,Patents Directorate,Personal expenses name witheld,J703230,150,Not Applicable
Department for Business Innovation and Skills,Intellectual Property Office,16/09/2015,Incorporations - Standard,Patents Directorate,Personal expenses name witheld,J745248,100,Not Applicable
Department for Business Innovation and Skills,Intellectual Property Office,16/09/2015,Incorporations - Standard,Patents Directorate,Personal expenses name witheld,K836959,150,Not Applicable
Department for Business Innovation and Skills,Intellectual Property Office,01/09/2015,Information Technology,IT Directorate,Bell Integrated Communications Ltd,2029,46099.2,Not Applicable
Department for Business Innovation and Skills,Intellectual Property Office,11/09/2015,Information Technology,IT Directorate,Loadbalancer.org Limited,2137,5263.49,Not Applicable
Department for Business Innovation and Skills,Intellectual Property Office,11/09/2015,Information Technology,IT Directorate,Questmark Ltd,9356,270,Not Applicable
Department for Business Innovation and Skills,Intellectual Property Office,18/09/2015,Information Technology,IT Directorate,Questmark Ltd,9363,120,Not Applicable
Department for Business Innovation and Skills,Intellectual Property Office,16/09/2015,Information Technology,IT Directorate,Search Technology,12076,6224.07,Not Applicable
Department for Business Innovation and Skills,Intellectual Property Office,17/09/2015,Information Technology,IT Directorate,European Dynamics GREECE,15863,54840,Not Applicable
Department for Business Innovation and Skills,Intellectual Property Office,17/09/2015,Information Technology,IT Directorate,CDI Group plc,42379,304.8,Not Applicable
Department for Business Innovation and Skills,Intellectual Property Office,17/09/2015,Information Technology,IT Directorate,Personal expenses name witheld,53043,51.87,Not Applicable
Department for Business Innovation and Skills,Intellectual Property Office,25/09/2015,Information Technology,IT Directorate,Open Connections Solutions Ltd,270222,24969.6,Not Applicable
Department for Business Innovation and Skills,Intellectual Property Office,01/09/2015,Information Technology,IT Directorate,INDIGOBLUE CONSULTING LIMITED,1507491,18205.2,Not Applicable
Department for Business Innovation and Skills,Intellectual Property Office,10/09/2015,Information Technology,IT Directorate,Trustmarque Solutions Ltd,2230326,429.34,Not Applicable
Department for Business Innovation and Skills,Intellectual Property Office,16/09/2015,Information Technology,Patents Directorate,European Patent Office,40247450,89580.69,Not Applicable
Department for Business Innovation and Skills,Intellectual Property Office,16/09/2015,Information Technology,Patents Directorate,European Patent Office,40248899,132.24,Not Applicable
Department for Business Innovation and Skills,Intellectual Property Office,30/09/2015,Information Technology,Patents Directorate,European Patent Office,40250193,89120.47,Not Applicable
Department for Business Innovation and Skills,Intellectual Property Office,14/09/2015,Information Technology,IT Directorate,British Standards Institution,400483354,439.99,Not Applicable
Department for Business Innovation and Skills,Intellectual Property Office,30/09/2015,Information Technology,IT Directorate,Verisign,520002472,3533.21,Not Applicable
Department for Business Innovation and Skills,Intellectual Property Office,30/09/2015,Information Technology,IT Directorate,Verisign,520002594,3533.21,Not Applicable
Department for Business Innovation and Skills,Intellectual Property Office,17/09/2015,Information Technology,Patents Directorate,Thomson Scientific Inc,832046817,43831.11,Not Applicable
Department for Business Innovation and Skills,Intellectual Property Office,17/09/2015,Information Technology,Innovation Directorate,Computacenter (UK) ltd,3880592063,7695.08,Not Applicable
Department for Business Innovation and Skills,Intellectual Property Office,16/09/2015,Information Technology,IT Directorate,Computacenter (UK) ltd,3880593184,789.24,Not Applicable
Department for Business Innovation and Skills,Intellectual Property Office,21/09/2015,Information Technology,IT Directorate,Computacenter (UK) ltd,3880625171,105.3,Not Applicable
Department for Business Innovation and Skills,Intellectual Property Office,21/09/2015,Information Technology,IT Directorate,Computacenter (UK) ltd,3880625172,2693.88,Not Applicable
Department for Business Innovation and Skills,Intellectual Property Office,24/09/2015,Information Technology,IT Directorate,Computacenter (UK) ltd,3880627816,132.12,Not Applicable
Department for Business Innovation and Skills,Intellectual Property Office,21/09/2015,Information Technology,IT Directorate,Atos IT Services UK Limited,5584195507,541.9,Not Applicable
Department for Business Innovation and Skills,Intellectual Property Office,30/09/2015,Information Technology,Patents Directorate,STN,9340278984,10017.71,Not Applicable
Department for Business Innovation and Skills,Intellectual Property Office,30/09/2015,Information Technology,Patents Directorate,STN,9340281580,10017.71,Not Applicable
Department for Business Innovation and Skills,Intellectual Property Office,30/09/2015,Information Technology,Patents Directorate,STN,9340284233,10017.71,Not Applicable
Department for Business Innovation and Skills,Intellectual Property Office,16/09/2015,Information Technology,Patents Directorate,STN,9340285252,5.34,Not Applicable
Department for Business Innovation and Skills,Intellectual Property Office,16/09/2015,Information Technology,Patents Directorate,STN,9340285756,142.72,Not Applicable
Department for Business Innovation and Skills,Intellectual Property Office,30/09/2015,Information Technology,Patents Directorate,European Patent Office,40250193A,70.12,Not Applicable
Department for Business Innovation and Skills,Intellectual Property Office,07/09/2015,Information Technology,IT Directorate,SANDHILL CONSULTANTS LTD,IN4058360,9600,Not Applicable
Department for Business Innovation and Skills,Intellectual Property Office,07/09/2015,Information Technology,IT Directorate,SANDHILL CONSULTANTS LTD,IN4058361,3000,Not Applicable
Department for Business Innovation and Skills,Intellectual Property Office,24/09/2015,Information Technology,IT Directorate,LA International Computer Consultants Lt,LA342188,3146.88,Not Applicable
Department for Business Innovation and Skills,Intellectual Property Office,28/09/2015,Information Technology,IT Directorate,LA International Computer Consultants Lt,LA342190,2926.33,Not Applicable
Department for Business Innovation and Skills,Intellectual Property Office,07/09/2015,Information Technology,IT Directorate,LA International Computer Consultants Lt,LA343692,2623.38,Not Applicable
Department for Business Innovation and Skills,Intellectual Property Office,11/09/2015,Information Technology,IT Directorate,LA International Computer Consultants Lt,LA343693,4570.44,Not Applicable
Department for Business Innovation and Skills,Intellectual Property Office,11/09/2015,Information Technology,IT Directorate,LA International Computer Consultants Lt,LA343694,7913.38,Not Applicable
Department for Business Innovation and Skills,Intellectual Property Office,09/09/2015,Information Technology,IT Directorate,LA International Computer Consultants Lt,LA344945,7154.78,Not Applicable
Department for Business Innovation and Skills,Intellectual Property Office,09/09/2015,Information Technology,IT Directorate,LA International Computer Consultants Lt,LA344946,2622.72,Not Applicable
Department for Business Innovation and Skills,Intellectual Property Office,11/09/2015,Information Technology,IT Directorate,LA International Computer Consultants Lt,LA344947,2944.67,Not Applicable
Department for Business Innovation and Skills,Intellectual Property Office,11/09/2015,Information Technology,IT Directorate,LA International Computer Consultants Lt,LA344949,2149.96,Not Applicable
Department for Business Innovation and Skills,Intellectual Property Office,11/09/2015,Information Technology,IT Directorate,LA International Computer Consultants Lt,LA345733,1782.94,Not Applicable
Department for Business Innovation and Skills,Intellectual Property Office,11/09/2015,Information Technology,IT Directorate,LA International Computer Consultants Lt,LA345734,1639.86,Not Applicable
Department for Business Innovation and Skills,Intellectual Property Office,11/09/2015,Information Technology,IT Directorate,LA International Computer Consultants Lt,LA345735,9440.64,Not Applicable
Department for Business Innovation and Skills,Intellectual Property Office,11/09/2015,Information Technology,IT Directorate,LA International Computer Consultants Lt,LA345736,2270.74,Not Applicable
Department for Business Innovation and Skills,Intellectual Property Office,11/09/2015,Information Technology,IT Directorate,LA International Computer Consultants Lt,LA345737,2701.5,Not Applicable
Department for Business Innovation and Skills,Intellectual Property Office,21/09/2015,Information Technology,IT Directorate,LA International Computer Consultants Lt,LA346572,2237.76,Not Applicable
Department for Business Innovation and Skills,Intellectual Property Office,21/09/2015,Information Technology,IT Directorate,LA International Computer Consultants Lt,LA346573,2578.13,Not Applicable
Department for Business Innovation and Skills,Intellectual Property Office,28/09/2015,Information Technology,IT Directorate,LA International Computer Consultants Lt,LA346574,2681.63,Not Applicable
Department for Business Innovation and Skills,Intellectual Property Office,21/09/2015,Information Technology,IT Directorate,LA International Computer Consultants Lt,LA346575,4566.9,Not Applicable
Department for Business Innovation and Skills,Intellectual Property Office,28/09/2015,Information Technology,IT Directorate,LA International Computer Consultants Lt,LA346576,2882.06,Not Applicable
Department for Business Innovation and Skills,Intellectual Property Office,22/09/2015,Information Technology,IT Directorate,LA International Computer Consultants Lt,LA346855,3146.88,Not Applicable
Department for Business Innovation and Skills,Intellectual Property Office,22/09/2015,Information Technology,IT Directorate,LA International Computer Consultants Lt,LA346856,3146.88,Not Applicable
Department for Business Innovation and Skills,Intellectual Property Office,25/09/2015,Information Technology,IT Directorate,LA International Computer Consultants Lt,LA347755,2237.76,Not Applicable
Department for Business Innovation and Skills,Intellectual Property Office,28/09/2015,Information Technology,IT Directorate,LA International Computer Consultants Lt,LA347757,2881.51,Not Applicable
Department for Business Innovation and Skills,Intellectual Property Office,25/09/2015,Information Technology,IT Directorate,LA International Computer Consultants Lt,LA347758,2669.88,Not Applicable
Department for Business Innovation and Skills,Intellectual Property Office,28/09/2015,Information Technology,IT Directorate,LA International Computer Consultants Lt,LA347759,3272.71,Not Applicable
Department for Business Innovation and Skills,Intellectual Property Office,08/09/2015,Information Technology,IT Directorate,Capita Business Services  Ltd,LO10062822,6029.54,Not Applicable
Department for Business Innovation and Skills,Intellectual Property Office,28/09/2015,Information Technology,IT Directorate,Capita Business Services  Ltd,LO1006411,2712.96,Not Applicable
Department for Business Innovation and Skills,Intellectual Property Office,28/09/2015,Information Technology,IT Directorate,Capita Business Services  Ltd,LO1006411,2842.69,Not Applicable
Department for Business Innovation and Skills,Intellectual Property Office,28/09/2015,Information Technology,IT Directorate,Capita Business Services  Ltd,LO1006411,2468.18,Not Applicable
Department for Business Innovation and Skills,Intellectual Property Office,28/09/2015,Information Technology,IT Directorate,Capita Business Services  Ltd,LO1006411,4042.66,Not Applicable
Department for Business Innovation and Skills,Intellectual Property Office,28/09/2015,Information Technology,IT Directorate,Capita Business Services  Ltd,LO1006411,13153.72,Not Applicable
Department for Business Innovation and Skills,Intellectual Property Office,28/09/2015,Information Technology,IT Directorate,Capita Business Services  Ltd,LO1006411,2623.6,Not Applicable
Department for Business Innovation and Skills,Intellectual Property Office,11/09/2015,Information Technology,IT Directorate,Capita Business Services  Ltd,LO10064160,4447.76,Not Applicable
Department for Business Innovation and Skills,Intellectual Property Office,11/09/2015,Information Technology,IT Directorate,Capita Business Services  Ltd,LO10064160,2252,Not Applicable
Department for Business Innovation and Skills,Intellectual Property Office,11/09/2015,Information Technology,IT Directorate,Capita Business Services  Ltd,LO10064160,2187.32,Not Applicable
Department for Business Innovation and Skills,Intellectual Property Office,11/09/2015,Information Technology,IT Directorate,Capita Business Services  Ltd,LO10064160,2903.5,Not Applicable
Department for Business Innovation and Skills,Intellectual Property Office,11/09/2015,Information Technology,IT Directorate,Capita Business Services  Ltd,LO10064160,1783.9,Not Applicable
Department for Business Innovation and Skills,Intellectual Property Office,11/09/2015,Information Technology,IT Directorate,Capita Business Services  Ltd,LO10064160,2447.83,Not Applicable
Department for Business Innovation and Skills,Intellectual Property Office,11/09/2015,Information Technology,IT Directorate,Capita Business Services  Ltd,LO10064160,3123.1,Not Applicable
Department for Business Innovation and Skills,Intellectual Property Office,11/09/2015,Information Technology,IT Directorate,Capita Business Services  Ltd,LO10064160,3123.1,Not Applicable
Department for Business Innovation and Skills,Intellectual Property Office,11/09/2015,Information Technology,IT Directorate,Capita Business Services  Ltd,LO10064160,16719.36,Not Applicable
Department for Business Innovation and Skills,Intellectual Property Office,11/09/2015,Information Technology,IT Directorate,Capita Business Services  Ltd,LO10064160,3024.91,Not Applicable
Department for Business Innovation and Skills,Intellectual Property Office,11/09/2015,Information Technology,IT Directorate,Capita Business Services  Ltd,LO10064160,6573.12,Not Applicable
Department for Business Innovation and Skills,Intellectual Property Office,11/09/2015,Information Technology,IT Directorate,Capita Business Services  Ltd,LO10064160,7973.66,Not Applicable
Department for Business Innovation and Skills,Intellectual Property Office,11/09/2015,Information Technology,IT Directorate,Capita Business Services  Ltd,LO10064160,2001.78,Not Applicable
Department for Business Innovation and Skills,Intellectual Property Office,11/09/2015,Information Technology,IT Directorate,Capita Business Services  Ltd,LO10064160,11709.72,Not Applicable
Department for Business Innovation and Skills,Intellectual Property Office,11/09/2015,Information Technology,IT Directorate,Capita Business Services  Ltd,LO10064160,3198.72,Not Applicable
Department for Business Innovation and Skills,Intellectual Property Office,11/09/2015,Information Technology,IT Directorate,Capita Business Services  Ltd,LO10064160,4660.08,Not Applicable
Department for Business Innovation and Skills,Intellectual Property Office,11/09/2015,Information Technology,IT Directorate,Capita Business Services  Ltd,LO10064160,3037.06,Not Applicable
Department for Business Innovation and Skills,Intellectual Property Office,11/09/2015,Information Technology,IT Directorate,Capita Business Services  Ltd,LO10064160,11261.48,Not Applicable
Department for Business Innovation and Skills,Intellectual Property Office,11/09/2015,Information Technology,IT Directorate,Capita Business Services  Ltd,LO10064160,2109.52,Not Applicable
Department for Business Innovation and Skills,Intellectual Property Office,11/09/2015,Information Technology,IT Directorate,Capita Business Services  Ltd,LO10064160,2623.6,Not Applicable
Department for Business Innovation and Skills,Intellectual Property Office,11/09/2015,Information Technology,IT Directorate,Capita Business Services  Ltd,LO10064160,2541.9,Not Applicable
Department for Business Innovation and Skills,Intellectual Property Office,17/09/2015,Information Technology,IT Directorate,Capita Business Services  Ltd,LO10065139,6183.35,Not Applicable
Department for Business Innovation and Skills,Intellectual Property Office,17/09/2015,Information Technology,IT Directorate,Capita Business Services  Ltd,LO10065139,1206.35,Not Applicable
Department for Business Innovation and Skills,Intellectual Property Office,17/09/2015,Information Technology,IT Directorate,Capita Business Services  Ltd,LO10065139,6424.8,Not Applicable
Department for Business Innovation and Skills,Intellectual Property Office,17/09/2015,Information Technology,IT Directorate,Capita Business Services  Ltd,LO10065139,7686.62,Not Applicable
Department for Business Innovation and Skills,Intellectual Property Office,17/09/2015,Information Technology,IT Directorate,Capita Business Services  Ltd,LO10065139,16927.21,Not Applicable
Department for Business Innovation and Skills,Intellectual Property Office,17/09/2015,Information Technology,IT Directorate,Capita Business Services  Ltd,LO10065139,3366,Not Applicable
Department for Business Innovation and Skills,Intellectual Property Office,17/09/2015,Information Technology,IT Directorate,Capita Business Services  Ltd,LO10065139,3796.01,Not Applicable
Department for Business Innovation and Skills,Intellectual Property Office,17/09/2015,Information Technology,IT Directorate,Capita Business Services  Ltd,LO10065139,2917.06,Not Applicable
Department for Business Innovation and Skills,Intellectual Property Office,21/09/2015,Information Technology,International Policy Directorate,Miggle Ltd,MIG/IPO/001/001,4744.5,Not Applicable
Department for Business Innovation and Skills,Intellectual Property Office,07/09/2015,Information Technology,People Places & Services Directorate,Specialist Computer Centres Plc,OP/M044930,1285.24,Not Applicable
Department for Business Innovation and Skills,Intellectual Property Office,07/09/2015,Information Technology,IT Directorate,Specialist Computer Centres Plc,OP/M047489,1378.3,Not Applicable
Department for Business Innovation and Skills,Intellectual Property Office,18/09/2015,Information Technology,IT Directorate,Specialist Computer Centres Plc,OP/M051789,1370.4,Not Applicable
Department for Business Innovation and Skills,Intellectual Property Office,21/09/2015,Information Technology,IT Directorate,Kelway (UK) Ltd,PSINV01472590,5653.97,Not Applicable
Department for Business Innovation and Skills,Intellectual Property Office,21/09/2015,Information Technology,IT Directorate,Kelway (UK) Ltd,PSINV01484768,7917.77,Not Applicable
Department for Business Innovation and Skills,Intellectual Property Office,21/09/2015,Information Technology,IT Directorate,Kelway (UK) Ltd,PSINV01487387,7917.77,Not Applicable
Department for Business Innovation and Skills,Intellectual Property Office,18/09/2015,Information Technology,International Policy Directorate,Methods Professional Services Ltd,SIN017523,10812,Not Applicable
Department for Business Innovation and Skills,Intellectual Property Office,18/09/2015,Legal & Hearings,Trade Marks Directorate,Marten Walsh Cherer Ltd,89861,1312.16,Not Applicable
Department for Business Innovation and Skills,Intellectual Property Office,28/09/2015,Legal & Hearings,Patents Directorate,Marten Walsh Cherer Ltd,89873,1128.71,Not Applicable
Department for Business Innovation and Skills,Intellectual Property Office,23/09/2015,Legal & Hearings,People Places & Services Directorate,Government Legal Department,420490,30.72,Not Applicable
Department for Business Innovation and Skills,Intellectual Property Office,02/09/2015,Legal & Hearings,People Places & Services Directorate,Capital Law LLP,20031707,450,Not Applicable
Department for Business Innovation and Skills,Intellectual Property Office,11/09/2015,Legal & Hearings,International Policy Directorate,Eversheds Solicitors LLP,91410269,22494.98,Not Applicable
Department for Business Innovation and Skills,Intellectual Property Office,28/09/2015,Marketing & Publicity,Innovation Directorate,Redbrick Enterprises Ltd,768,600,Not Applicable
Department for Business Innovation and Skills,Intellectual Property Office,28/09/2015,Marketing & Publicity,Innovation Directorate,Hethel Innovation,1013,540,Not Applicable
Department for Business Innovation and Skills,Intellectual Property Office,28/09/2015,Marketing & Publicity,Innovation Directorate,THE BUSINESS GROWTH SHOW LTD,1090,1200,Not Applicable
Department for Business Innovation and Skills,Intellectual Property Office,18/09/2015,Marketing & Publicity,Innovation Directorate,Knowledge Peers,1382,900,Not Applicable
Department for Business Innovation and Skills,Intellectual Property Office,21/09/2015,Marketing & Publicity,Copyright and Enforcement Directorate,Clio Enterprises Ltd,3431,310,Not Applicable
Department for Business Innovation and Skills,Intellectual Property Office,14/09/2015,Marketing & Publicity,Innovation Directorate,GWIIN Events International,25123,2500,Not Applicable
Department for Business Innovation and Skills,Intellectual Property Office,16/09/2015,Marketing & Publicity,Innovation Directorate,Aardman Animations Ltd,30768,910.8,Not Applicable
Department for Business Innovation and Skills,Intellectual Property Office,16/09/2015,Marketing & Publicity,Innovation Directorate,Aardman Animations Ltd,30770,1539.6,Not Applicable
Department for Business Innovation and Skills,Intellectual Property Office,28/09/2015,Marketing & Publicity,Innovation Directorate,Solicitors Group,63070,208.5,Not Applicable
Department for Business Innovation and Skills,Intellectual Property Office,28/09/2015,Marketing & Publicity,Innovation Directorate,Solicitors Group,63071,208.5,Not Applicable
Department for Business Innovation and Skills,Intellectual Property Office,28/09/2015,Marketing & Publicity,Innovation Directorate,Solicitors Group,63073,208.5,Not Applicable
Department for Business Innovation and Skills,Intellectual Property Office,02/09/2015,Marketing & Publicity,Copyright and Enforcement Directorate,ITSA Ltd,71567,120,Not Applicable
Department for Business Innovation and Skills,Intellectual Property Office,16/09/2015,Marketing & Publicity,Innovation Directorate,WIGAN COUNCIL,71229428300,350,Not Applicable
Department for Business Innovation and Skills,Intellectual Property Office,25/09/2015,Marketing & Publicity,Innovation Directorate,Jockey Club Racecourses Ltd,25INV01123433,601.08,Not Applicable
Department for Business Innovation and Skills,Intellectual Property Office,16/09/2015,Marketing & Publicity,Innovation Directorate,Coventry & Warwickhire C of C,CCHB000070816,450,Not Applicable
Department for Business Innovation and Skills,Intellectual Property Office,02/09/2015,Marketing & Publicity,Innovation Directorate,EntMarkt Ltd,E15/24,1080,Not Applicable
Department for Business Innovation and Skills,Intellectual Property Office,16/09/2015,Marketing & Publicity,Innovation Directorate,FUTURE PUBLISHING LIMITED,FPL000960,486,Not Applicable
Department for Business Innovation and Skills,Intellectual Property Office,28/09/2015,Marketing & Publicity,Innovation Directorate,Innov8 Conference Services,INV-0022,450,Not Applicable
Department for Business Innovation and Skills,Intellectual Property Office,28/09/2015,Marketing & Publicity,Innovation Directorate,Innov8 Conference Services,INV-0046,60,Not Applicable
Department for Business Innovation and Skills,Intellectual Property Office,01/09/2015,Marketing & Publicity,Innovation Directorate,Lucky Voice Pods Ltd,LVP0808,360,Not Applicable
Department for Business Innovation and Skills,Intellectual Property Office,30/09/2015,Marketing & Publicity,Innovation Directorate,Lucky Voice Pods Ltd,LVP0821,360,Not Applicable
Department for Business Innovation and Skills,Intellectual Property Office,28/09/2015,Marketing & Publicity,Innovation Directorate,The Best of Bury,MIBBF/1/IPO,478.8,Not Applicable
Department for Business Innovation and Skills,Intellectual Property Office,30/09/2015,Marketing & Publicity,Innovation Directorate,Perfectmotion Ltd,PMM20072015,4959.6,Not Applicable
Department for Business Innovation and Skills,Intellectual Property Office,14/09/2015,Misc Expenses Finance,Finance Directorate,G4S Cash Services (UK) Ltd,1844632,589.54,Not Applicable
Department for Business Innovation and Skills,Intellectual Property Office,17/09/2015,Misc Expenses Finance,Finance Directorate,G4S Cash Services (UK) Ltd,1854646,538.27,Not Applicable
Department for Business Innovation and Skills,Intellectual Property Office,16/09/2015,Misc Expenses Finance,People Places & Services Directorate,Marsh Ltd,8204571,2191.9,Not Applicable
Department for Business Innovation and Skills,Intellectual Property Office,07/09/2015,Miscellaneous Expenses General,People Places & Services Directorate,Personal expenses name witheld,53030,14,Not Applicable
Department for Business Innovation and Skills,Intellectual Property Office,21/09/2015,Miscellaneous Expenses General,Innovation Directorate,Web Usability Partnership Ltd,1573,8370,Not Applicable
Department for Business Innovation and Skills,Intellectual Property Office,23/09/2015,Miscellaneous Expenses General,People Places & Services Directorate,castell coaches,4328,320,Not Applicable
Department for Business Innovation and Skills,Intellectual Property Office,02/09/2015,Miscellaneous Expenses General,Innovation Directorate,Veezu Ltd T/A Dragon Taxis (Newport),4346,179.76,Not Applicable
Department for Business Innovation and Skills,Intellectual Property Office,23/09/2015,Miscellaneous Expenses General,People Places & Services Directorate,On Your Bike,33187,718.99,Not Applicable
Department for Business Innovation and Skills,Intellectual Property Office,16/09/2015,Miscellaneous Expenses General,International Policy Directorate,Robin Jacob,42248,1824,Not Applicable
Department for Business Innovation and Skills,Intellectual Property Office,03/09/2015,Miscellaneous Expenses General,People Places & Services Directorate,Personal expenses name witheld,53027,9.3,Not Applicable
Department for Business Innovation and Skills,Intellectual Property Office,03/09/2015,Miscellaneous Expenses General,People Places & Services Directorate,Personal expenses name witheld,53029,60,Not Applicable
Department for Business Innovation and Skills,Intellectual Property Office,08/09/2015,Miscellaneous Expenses General,People Places & Services Directorate,Personal expenses name witheld,53032,154.46,Not Applicable
Department for Business Innovation and Skills,Intellectual Property Office,08/09/2015,Miscellaneous Expenses General,People Places & Services Directorate,Personal expenses name witheld,53033,20,Not Applicable
Department for Business Innovation and Skills,Intellectual Property Office,09/09/2015,Miscellaneous Expenses General,People Places & Services Directorate,Personal expenses name witheld,53035,173.2,Not Applicable
Department for Business Innovation and Skills,Intellectual Property Office,09/09/2015,Miscellaneous Expenses General,People Places & Services Directorate,Personal expenses name witheld,53037,65,Not Applicable
Department for Business Innovation and Skills,Intellectual Property Office,10/09/2015,Miscellaneous Expenses General,Finance Directorate,Personal expenses name witheld,53038,48.26,Not Applicable
Department for Business Innovation and Skills,Intellectual Property Office,11/09/2015,Miscellaneous Expenses General,People Places & Services Directorate,Personal expenses name witheld,53041,15,Not Applicable
Department for Business Innovation and Skills,Intellectual Property Office,17/09/2015,Miscellaneous Expenses General,Finance Directorate,Susan Chapman,53044,17.74,Not Applicable
Department for Business Innovation and Skills,Intellectual Property Office,22/09/2015,Miscellaneous Expenses General,People Places & Services Directorate,POSSA,53045,2612.23,Not Applicable
Department for Business Innovation and Skills,Intellectual Property Office,30/09/2015,Miscellaneous Expenses General,People Places & Services Directorate,Richard Kerslake,53049,60,Not Applicable
Department for Business Innovation and Skills,Intellectual Property Office,30/09/2015,Miscellaneous Expenses General,People Places & Services Directorate,Iron Mountain UK Ltd,395622,12800.24,Not Applicable
Department for Business Innovation and Skills,Intellectual Property Office,23/09/2015,Miscellaneous Expenses General,People Places & Services Directorate,P&MM Ltd,502857,120.43,Not Applicable
Department for Business Innovation and Skills,Intellectual Property Office,23/09/2015,Miscellaneous Expenses General,People Places & Services Directorate,P&MM Ltd,502867,6775.82,Not Applicable
Department for Business Innovation and Skills,Intellectual Property Office,23/09/2015,Miscellaneous Expenses General,People Places & Services Directorate,P&MM Ltd,1022744,8400.7,Not Applicable
Department for Business Innovation and Skills,Intellectual Property Office,14/09/2015,Miscellaneous Expenses General,People Places & Services Directorate,PPL UK,2774851,77.69,Not Applicable
Department for Business Innovation and Skills,Intellectual Property Office,02/09/2015,Miscellaneous Expenses General,People Places & Services Directorate,PPL UK,2824167,38.84,Not Applicable
Department for Business Innovation and Skills,Intellectual Property Office,01/09/2015,Miscellaneous Expenses General,Trade Marks Directorate,FCO Services,6051592,487.5,Not Applicable
Department for Business Innovation and Skills,Intellectual Property Office,01/09/2015,Miscellaneous Expenses General,Trade Marks Directorate,FCO Services,6051593,1237.52,Not Applicable
Department for Business Innovation and Skills,Intellectual Property Office,03/09/2015,Miscellaneous Expenses General,Trade Marks Directorate,FCO Services,6051688,600,Not Applicable
Department for Business Innovation and Skills,Intellectual Property Office,03/09/2015,Miscellaneous Expenses General,Trade Marks Directorate,FCO Services,6051689,675,Not Applicable
Department for Business Innovation and Skills,Intellectual Property Office,03/09/2015,Miscellaneous Expenses General,Trade Marks Directorate,FCO Services,6051690,450,Not Applicable
Department for Business Innovation and Skills,Intellectual Property Office,17/09/2015,Miscellaneous Expenses General,Copyright and Enforcement Directorate,Restaurant Bar and Grill Ltd,17092015,524.47,Not Applicable
Department for Business Innovation and Skills,Intellectual Property Office,17/09/2015,Miscellaneous Expenses General,Copyright and Enforcement Directorate,Companies House,253628041,4,Not Applicable
Department for Business Innovation and Skills,Intellectual Property Office,16/09/2015,Miscellaneous Expenses General,Innovation Directorate,Newcastle City Council,1.80E+12,93.6,Not Applicable
Department for Business Innovation and Skills,Intellectual Property Office,08/09/2015,Miscellaneous Expenses General,Finance Directorate,VALUATION OFFICE AGENCY,2.50E+13,1406.71,Not Applicable
Department for Business Innovation and Skills,Intellectual Property Office,22/09/2015,Miscellaneous Expenses General,People Places & Services Directorate,Mitie Facilities Services Ltd,100-91041572,29.52,Not Applicable
Department for Business Innovation and Skills,Intellectual Property Office,22/09/2015,Miscellaneous Expenses General,People Places & Services Directorate,Mitie Facilities Services Ltd,100-91041572,87.24,Not Applicable
Department for Business Innovation and Skills,Intellectual Property Office,22/09/2015,Miscellaneous Expenses General,People Places & Services Directorate,Mitie Facilities Services Ltd,100-91041572,48.66,Not Applicable
Department for Business Innovation and Skills,Intellectual Property Office,22/09/2015,Miscellaneous Expenses General,People Places & Services Directorate,Mitie Facilities Services Ltd,100-91041572,66,Not Applicable
Department for Business Innovation and Skills,Intellectual Property Office,22/09/2015,Miscellaneous Expenses General,Patents Directorate,Mitie Facilities Services Ltd,100-91041572,97.2,Not Applicable
Department for Business Innovation and Skills,Intellectual Property Office,22/09/2015,Miscellaneous Expenses General,Patents Directorate,Mitie Facilities Services Ltd,100-91041572,86.82,Not Applicable
Department for Business Innovation and Skills,Intellectual Property Office,22/09/2015,Miscellaneous Expenses General,Finance Directorate,Mitie Facilities Services Ltd,100-91041572,16.62,Not Applicable
Department for Business Innovation and Skills,Intellectual Property Office,22/09/2015,Miscellaneous Expenses General,People Places & Services Directorate,Mitie Facilities Services Ltd,100-91041572,193.2,Not Applicable
Department for Business Innovation and Skills,Intellectual Property Office,22/09/2015,Miscellaneous Expenses General,Trade Marks Directorate,Mitie Facilities Services Ltd,100-91041572,94.8,Not Applicable
Department for Business Innovation and Skills,Intellectual Property Office,22/09/2015,Miscellaneous Expenses General,Trade Marks Directorate,Mitie Facilities Services Ltd,100-91041572,248.34,Not Applicable
Department for Business Innovation and Skills,Intellectual Property Office,22/09/2015,Miscellaneous Expenses General,International Policy Directorate,Mitie Facilities Services Ltd,100-91041572,35.64,Not Applicable
Department for Business Innovation and Skills,Intellectual Property Office,22/09/2015,Miscellaneous Expenses General,International Policy Directorate,Mitie Facilities Services Ltd,100-91041572,60.84,Not Applicable
Department for Business Innovation and Skills,Intellectual Property Office,22/09/2015,Miscellaneous Expenses General,People Places & Services Directorate,Mitie Facilities Services Ltd,100-91041572,15.12,Not Applicable
Department for Business Innovation and Skills,Intellectual Property Office,28/09/2015,Miscellaneous Expenses General,People Places & Services Directorate,Mitie Facilities Services Ltd,100-91062082,31.68,Not Applicable
Department for Business Innovation and Skills,Intellectual Property Office,28/09/2015,Miscellaneous Expenses General,Finance Directorate,Mitie Facilities Services Ltd,100-91062082,7.27,Not Applicable
Department for Business Innovation and Skills,Intellectual Property Office,28/09/2015,Miscellaneous Expenses General,People Places & Services Directorate,Mitie Facilities Services Ltd,100-91062082,30.78,Not Applicable
Department for Business Innovation and Skills,Intellectual Property Office,16/09/2015,Miscellaneous Expenses General,International Policy Directorate,Intercontinental,1ST/2ND DEPOSIT,1961.73,Not Applicable
Department for Business Innovation and Skills,Intellectual Property Office,25/09/2015,Miscellaneous Expenses General,People Places & Services Directorate,Steve Morgan Associates,6249/1155218,960,Not Applicable
Department for Business Innovation and Skills,Intellectual Property Office,25/09/2015,Miscellaneous Expenses General,People Places & Services Directorate,Steve Morgan Associates,6320/155219,2268,Not Applicable
Department for Business Innovation and Skills,Intellectual Property Office,24/09/2015,Miscellaneous Expenses General,Innovation Directorate,IET Services Ltd,AC007328,1713.9,Not Applicable
Department for Business Innovation and Skills,Intellectual Property Office,02/09/2015,Miscellaneous Expenses General,People Places & Services Directorate,Santia Consulting Ltd,C0013616-INV,750,Not Applicable
Department for Business Innovation and Skills,Intellectual Property Office,02/09/2015,Miscellaneous Expenses General,People Places & Services Directorate,Santia Consulting Ltd,C0013694-INV,414,Not Applicable
Department for Business Innovation and Skills,Intellectual Property Office,02/09/2015,Miscellaneous Expenses General,People Places & Services Directorate,Santia Consulting Ltd,C0014035-INV,156,Not Applicable
Department for Business Innovation and Skills,Intellectual Property Office,15/09/2015,Miscellaneous Expenses General,People Places & Services Directorate,Santia Consulting Ltd,C0014186-INV,414,Not Applicable
Department for Business Innovation and Skills,Intellectual Property Office,15/09/2015,Miscellaneous Expenses General,People Places & Services Directorate,British Red Cross,C458484,-318,Not Applicable
Department for Business Innovation and Skills,Intellectual Property Office,09/09/2015,Miscellaneous Expenses General,People Places & Services Directorate,DECC CRC,CRCFP2723000,29864.4,Not Applicable
Department for Business Innovation and Skills,Intellectual Property Office,16/09/2015,Miscellaneous Expenses General,Copyright and Enforcement Directorate,Yassine Lefouili,CT-RES-16YASSIN2,10200,Not Applicable
Department for Business Innovation and Skills,Intellectual Property Office,02/09/2015,Miscellaneous Expenses General,Innovation Directorate,Goldborough Studio Ltd,GSO145,145.83,Not Applicable
Department for Business Innovation and Skills,Intellectual Property Office,17/09/2015,Miscellaneous Expenses General,Copyright and Enforcement Directorate,Experian Ltd,IEX3001625580,15.78,Not Applicable
Department for Business Innovation and Skills,Intellectual Property Office,08/09/2015,Miscellaneous Expenses General,People Places & Services Directorate,British Red Cross,N984091,636,Not Applicable
Department for Business Innovation and Skills,Intellectual Property Office,30/09/2015,Miscellaneous Expenses General,People Places & Services Directorate,Celtic Manor Resort,PATENT OFFICE,572.8,Not Applicable
Department for Business Innovation and Skills,Intellectual Property Office,30/09/2015,Miscellaneous Expenses General,People Places & Services Directorate,UK Shared Business Services Ltd,SBS-12444,42515.9,Not Applicable
Department for Business Innovation and Skills,Intellectual Property Office,03/09/2015,Office Machinery,People Places & Services Directorate,Xerox (UK) Ltd,1604658538,180,Not Applicable
Department for Business Innovation and Skills,Intellectual Property Office,03/09/2015,Office Machinery,People Places & Services Directorate,Xerox (UK) Ltd,1604658539,259.22,Not Applicable
Department for Business Innovation and Skills,Intellectual Property Office,03/09/2015,Office Machinery,People Places & Services Directorate,Xerox (UK) Ltd,1604658540,180,Not Applicable
Department for Business Innovation and Skills,Intellectual Property Office,03/09/2015,Office Machinery,People Places & Services Directorate,Xerox (UK) Ltd,1604658541,294.38,Not Applicable
Department for Business Innovation and Skills,Intellectual Property Office,30/09/2015,Office Machinery,People Places & Services Directorate,Xerox (UK) Ltd,1604776642,332.4,Not Applicable
Department for Business Innovation and Skills,Intellectual Property Office,30/09/2015,Office Machinery,People Places & Services Directorate,Xerox (UK) Ltd,1604776643,299.99,Not Applicable
Department for Business Innovation and Skills,Intellectual Property Office,30/09/2015,Office Machinery,People Places & Services Directorate,Xerox (UK) Ltd,1604776644,1027.19,Not Applicable
Department for Business Innovation and Skills,Intellectual Property Office,30/09/2015,Office Machinery,People Places & Services Directorate,Xerox (UK) Ltd,1604776645,1027.19,Not Applicable
Department for Business Innovation and Skills,Intellectual Property Office,07/09/2015,Office Supplies,Patents Directorate,Progressive Media Group,30020,511.79,Not Applicable
Department for Business Innovation and Skills,Intellectual Property Office,09/09/2015,Office Supplies,Finance Directorate,Total Print Finishing Services Ltd,37630,68.4,Not Applicable
Department for Business Innovation and Skills,Intellectual Property Office,24/09/2015,Office Supplies,Finance Directorate,Total Print Finishing Services Ltd,37667,264.38,Not Applicable
Department for Business Innovation and Skills,Intellectual Property Office,03/09/2015,Office Supplies,International Policy Directorate,Melda Kazim,53025,15.96,Not Applicable
Department for Business Innovation and Skills,Intellectual Property Office,03/09/2015,Office Supplies,Finance Directorate,Print On Solutions Ltd (North West),135827,427.92,Not Applicable
Department for Business Innovation and Skills,Intellectual Property Office,15/09/2015,Office Supplies,People Places & Services Directorate,Menzies Distribution Ltd t/a Jones Yarre,213178,262.33,Not Applicable
Department for Business Innovation and Skills,Intellectual Property Office,28/09/2015,Office Supplies,Finance Directorate,Antalis,884813,-12,Not Applicable
Department for Business Innovation and Skills,Intellectual Property Office,08/09/2015,Office Supplies,Finance Directorate,RR Donnelley,4501284,804,Not Applicable
Department for Business Innovation and Skills,Intellectual Property Office,01/09/2015,Office Supplies,Finance Directorate,Antalis,5071750,624,Not Applicable
Department for Business Innovation and Skills,Intellectual Property Office,02/09/2015,Office Supplies,Finance Directorate,Antalis,5098552,624,Not Applicable
Department for Business Innovation and Skills,Intellectual Property Office,15/09/2015,Office Supplies,Finance Directorate,Antalis,5127332,624,Not Applicable
Department for Business Innovation and Skills,Intellectual Property Office,30/09/2015,Office Supplies,Finance Directorate,Antalis,5166038,91.02,Not Applicable
Department for Business Innovation and Skills,Intellectual Property Office,28/09/2015,Office Supplies,Finance Directorate,Antalis,5170546,839.62,Not Applicable
Department for Business Innovation and Skills,Intellectual Property Office,30/09/2015,Office Supplies,Finance Directorate,Antalis,5182188,37.02,Not Applicable
Department for Business Innovation and Skills,Intellectual Property Office,07/09/2015,Office Supplies,Patents Directorate,Stationery Office,23666579,30.63,Not Applicable
Department for Business Innovation and Skills,Intellectual Property Office,09/09/2015,Office Supplies,Finance Directorate,Banner  Business Supplies Ltd,30434028,1424.84,Not Applicable
Department for Business Innovation and Skills,Intellectual Property Office,01/09/2015,Office Supplies,Finance Directorate,Antalis,50272739,734.45,Not Applicable
Department for Business Innovation and Skills,Intellectual Property Office,07/09/2015,Office Supplies,Patents Directorate,British Library,139758787,4084.51,Not Applicable
Department for Business Innovation and Skills,Intellectual Property Office,30/09/2015,Office Supplies,Finance Directorate,Xerox (UK) Ltd,1604682120,153.76,Not Applicable
Department for Business Innovation and Skills,Intellectual Property Office,24/09/2015,Office Supplies,Finance Directorate,Xerox (UK) Ltd,1604721166,153.76,Not Applicable
Department for Business Innovation and Skills,Intellectual Property Office,30/09/2015,Office Supplies,Finance Directorate,Xerox (UK) Ltd,1604771706,314.4,Not Applicable
Department for Business Innovation and Skills,Intellectual Property Office,22/09/2015,Office Supplies,People Places & Services Directorate,Mitie Facilities Services Ltd,100-91041572,46.79,Not Applicable
Department for Business Innovation and Skills,Intellectual Property Office,22/09/2015,Office Supplies,Patents Directorate,Mitie Facilities Services Ltd,100-91041572,42,Not Applicable
Department for Business Innovation and Skills,Intellectual Property Office,28/09/2015,Office Supplies,People Places & Services Directorate,Mitie Facilities Services Ltd,100-91062082,33.6,Not Applicable
Department for Business Innovation and Skills,Intellectual Property Office,28/09/2015,Office Supplies,Patents Directorate,Mitie Facilities Services Ltd,100-91062082,24.7,Not Applicable
Department for Business Innovation and Skills,Intellectual Property Office,23/09/2015,Office Supplies,Finance Directorate,Williams Lea Ltd,BIS-IPO15060001,263.34,Not Applicable
Department for Business Innovation and Skills,Intellectual Property Office,25/09/2015,Office Supplies,Finance Directorate,Stamps Direct,CA332654,27.37,Not Applicable
Department for Business Innovation and Skills,Intellectual Property Office,25/09/2015,Office Supplies,Finance Directorate,Stamps Direct,CA334092,22.75,Not Applicable
Department for Business Innovation and Skills,Intellectual Property Office,25/09/2015,Office Supplies,People Places & Services Directorate,Evac+Chair International Ltd,INV82504,4786.8,Not Applicable
Department for Business Innovation and Skills,Intellectual Property Office,25/09/2015,Office Supplies,Patents Directorate,British Library,IS15W143149P,17.6,Not Applicable
Department for Business Innovation and Skills,Intellectual Property Office,09/09/2015,Pay Costs,Finance Directorate,Accountancy Recruitment Wales,1795,729.14,Not Applicable
Department for Business Innovation and Skills,Intellectual Property Office,11/09/2015,Pay Costs,Finance Directorate,Accountancy Recruitment Wales,1803,570.84,Not Applicable
Department for Business Innovation and Skills,Intellectual Property Office,11/09/2015,Pay Costs,Finance Directorate,Accountancy Recruitment Wales,1804,527.68,Not Applicable
Department for Business Innovation and Skills,Intellectual Property Office,17/09/2015,Pay Costs,Finance Directorate,Accountancy Recruitment Wales,1808,570.84,Not Applicable
Department for Business Innovation and Skills,Intellectual Property Office,17/09/2015,Pay Costs,Finance Directorate,Accountancy Recruitment Wales,1809,623.62,Not Applicable
Department for Business Innovation and Skills,Intellectual Property Office,08/09/2015,Pay Costs,People Places & Services Directorate,Brook Street (UK) Ltd,30351336,207.7,Not Applicable
Department for Business Innovation and Skills,Intellectual Property Office,08/09/2015,Pay Costs,Patents Directorate,Brook Street (UK) Ltd,30351336,287.28,Not Applicable
Department for Business Innovation and Skills,Intellectual Property Office,08/09/2015,Pay Costs,Finance Directorate,Brook Street (UK) Ltd,30351336,545.23,Not Applicable
Department for Business Innovation and Skills,Intellectual Property Office,08/09/2015,Pay Costs,Finance Directorate,Brook Street (UK) Ltd,30351336,1069.15,Not Applicable
Department for Business Innovation and Skills,Intellectual Property Office,08/09/2015,Pay Costs,Trade Marks Directorate,Brook Street (UK) Ltd,30351336,427.85,Not Applicable
Department for Business Innovation and Skills,Intellectual Property Office,11/09/2015,Pay Costs,Patents Directorate,Brook Street (UK) Ltd,30361473,376.66,Not Applicable
Department for Business Innovation and Skills,Intellectual Property Office,11/09/2015,Pay Costs,Finance Directorate,Brook Street (UK) Ltd,30361473,401.6,Not Applicable
Department for Business Innovation and Skills,Intellectual Property Office,11/09/2015,Pay Costs,Finance Directorate,Brook Street (UK) Ltd,30361473,766.98,Not Applicable
Department for Business Innovation and Skills,Intellectual Property Office,11/09/2015,Pay Costs,Trade Marks Directorate,Brook Street (UK) Ltd,30361473,424.34,Not Applicable
Department for Business Innovation and Skills,Intellectual Property Office,18/09/2015,Pay Costs,Patents Directorate,Brook Street (UK) Ltd,30371961,376.66,Not Applicable
Department for Business Innovation and Skills,Intellectual Property Office,18/09/2015,Pay Costs,Finance Directorate,Brook Street (UK) Ltd,30371961,966.92,Not Applicable
Department for Business Innovation and Skills,Intellectual Property Office,18/09/2015,Pay Costs,Finance Directorate,Brook Street (UK) Ltd,30371961,540.35,Not Applicable
Department for Business Innovation and Skills,Intellectual Property Office,18/09/2015,Pay Costs,Trade Marks Directorate,Brook Street (UK) Ltd,30371961,424.34,Not Applicable
Department for Business Innovation and Skills,Intellectual Property Office,28/09/2015,Pay Costs,People Places & Services Directorate,Brook Street (UK) Ltd,30382701,507.34,Not Applicable
Department for Business Innovation and Skills,Intellectual Property Office,28/09/2015,Pay Costs,Patents Directorate,Brook Street (UK) Ltd,30382701,472.42,Not Applicable
Department for Business Innovation and Skills,Intellectual Property Office,28/09/2015,Pay Costs,Finance Directorate,Brook Street (UK) Ltd,30382701,983.35,Not Applicable
Department for Business Innovation and Skills,Intellectual Property Office,28/09/2015,Pay Costs,Finance Directorate,Brook Street (UK) Ltd,30382701,857.38,Not Applicable
Department for Business Innovation and Skills,Intellectual Property Office,28/09/2015,Pay Costs,Trade Marks Directorate,Brook Street (UK) Ltd,30382701,406.81,Not Applicable
Department for Business Innovation and Skills,Intellectual Property Office,03/09/2015,Postage & Delivery Costs,International Policy Directorate,Personal expenses name witheld,53028,6.33,Not Applicable
Department for Business Innovation and Skills,Intellectual Property Office,16/09/2015,Postage & Delivery Costs,International Policy Directorate,Melda Kazim,53042,6.33,Not Applicable
Department for Business Innovation and Skills,Intellectual Property Office,22/09/2015,Postage & Delivery Costs,People Places & Services Directorate,Melda Kazim,53046,7.25,Not Applicable
Department for Business Innovation and Skills,Intellectual Property Office,22/09/2015,Postage & Delivery Costs,People Places & Services Directorate,Melda Kazim,53047,6,Not Applicable
Department for Business Innovation and Skills,Intellectual Property Office,09/09/2015,Postage & Delivery Costs,People Places & Services Directorate,RICO LOGISTICS LTD,765838,16.25,Not Applicable
Department for Business Innovation and Skills,Intellectual Property Office,08/09/2015,Postage & Delivery Costs,People Places & Services Directorate,CitySprint (UK) Ltd,1437632,3099.53,Not Applicable
Department for Business Innovation and Skills,Intellectual Property Office,08/09/2015,Postage & Delivery Costs,People Places & Services Directorate,Parcelforce Worldwide,9050486794,766.24,Not Applicable
Department for Business Innovation and Skills,Intellectual Property Office,17/09/2015,Postage & Delivery Costs,People Places & Services Directorate,Royal Mail,9050598981,12.61,Not Applicable
Department for Business Innovation and Skills,Intellectual Property Office,24/09/2015,Postage & Delivery Costs,People Places & Services Directorate,Parcelforce Worldwide,9050663891,1051.45,Not Applicable
Department for Business Innovation and Skills,Intellectual Property Office,28/09/2015,Postage & Delivery Costs,People Places & Services Directorate,Royal Mail,9050671313,1331.18,Not Applicable
Department for Business Innovation and Skills,Intellectual Property Office,29/09/2015,Postage & Delivery Costs,IT Directorate,"Idera, Inc.",0142447-R,3079.62,Not Applicable
Department for Business Innovation and Skills,Intellectual Property Office,09/09/2015,Postage & Delivery Costs,People Places & Services Directorate,Neopost Ltd,705614-NE9000335,10000,Not Applicable
Department for Business Innovation and Skills,Intellectual Property Office,29/09/2015,Postage & Delivery Costs,IT Directorate,Upland Software III Inc,CI-02056,4946.23,Not Applicable
Department for Business Innovation and Skills,Intellectual Property Office,08/09/2015,Postage & Delivery Costs,People Places & Services Directorate,Personal expenses name witheld,E2005263764,47.28,Not Applicable
Department for Business Innovation and Skills,Intellectual Property Office,15/09/2015,Postage & Delivery Costs,People Places & Services Directorate,Personal expenses name witheld,E2005340595,61.99,Not Applicable
Department for Business Innovation and Skills,Intellectual Property Office,08/09/2015,Postage & Delivery Costs,People Places & Services Directorate,DHL International (UK) Ltd,NPR8917400,6400.94,Not Applicable
Department for Business Innovation and Skills,Intellectual Property Office,08/09/2015,Staff Costs,People Places & Services Directorate,OE Cam LLP,254,4466.53,Not Applicable
Department for Business Innovation and Skills,Intellectual Property Office,25/09/2015,Staff Costs,Patents Directorate,Bespoke Speechwriting Services Ltd,621,900,Not Applicable
Department for Business Innovation and Skills,Intellectual Property Office,30/09/2015,Staff Costs,Patents Directorate,Personal expenses name witheld,1438,7.2,Not Applicable
Department for Business Innovation and Skills,Intellectual Property Office,30/09/2015,Staff Costs,People Places & Services Directorate,Personal expenses name witheld,1438,90,Not Applicable
Department for Business Innovation and Skills,Intellectual Property Office,18/09/2015,Staff Costs,People Places & Services Directorate,OE Cam LLP,1704,1028.47,Not Applicable
Department for Business Innovation and Skills,Intellectual Property Office,23/09/2015,Staff Costs,People Places & Services Directorate,Psysoft Ltd,2962,264,Not Applicable
Department for Business Innovation and Skills,Intellectual Property Office,30/09/2015,Staff Costs,People Places & Services Directorate,MyCSP Ltd,5282,3540,Not Applicable
Department for Business Innovation and Skills,Intellectual Property Office,18/09/2015,Staff Costs,IT Directorate,Webcredible Ltd,6568,3720,Not Applicable
Department for Business Innovation and Skills,Intellectual Property Office,21/09/2015,Staff Costs,Copyright and Enforcement Directorate,VERDANT MEDIA,8143,540,Not Applicable
Department for Business Innovation and Skills,Intellectual Property Office,10/09/2015,Staff Costs,People Places & Services Directorate,CERTITEC,11751,1076.4,Not Applicable
Department for Business Innovation and Skills,Intellectual Property Office,18/09/2015,Staff Costs,IT Directorate,CPS Group (UK) Ltd,21008,7080,Not Applicable
Department for Business Innovation and Skills,Intellectual Property Office,08/09/2015,Staff Costs,People Places & Services Directorate,Personal expenses name witheld,53031,36.37,Not Applicable
Department for Business Innovation and Skills,Intellectual Property Office,08/09/2015,Staff Costs,People Places & Services Directorate,Personal expenses name witheld,53034,595.7,Not Applicable
Department for Business Innovation and Skills,Intellectual Property Office,16/09/2015,Staff Costs,People Places & Services Directorate,Personal expenses name witheld,53036,187,Not Applicable
Department for Business Innovation and Skills,Intellectual Property Office,10/09/2015,Staff Costs,Finance Directorate,Personal expenses name witheld,53039,86,Not Applicable
Department for Business Innovation and Skills,Intellectual Property Office,30/09/2015,Staff Costs,People Places & Services Directorate,Personal expenses name witheld,53050,166.5,Not Applicable
Department for Business Innovation and Skills,Intellectual Property Office,07/09/2015,Staff Costs,People Places & Services Directorate,Chartered Institute of Payroll Professio,57590,1930.8,Not Applicable
Department for Business Innovation and Skills,Intellectual Property Office,02/09/2015,Staff Costs,People Places & Services Directorate,British Computer Society,1382662,164.7,Not Applicable
Department for Business Innovation and Skills,Intellectual Property Office,30/09/2015,Staff Costs,International Policy Directorate,Whitehall & Industry Group,2150215,540,Not Applicable
Department for Business Innovation and Skills,Intellectual Property Office,30/09/2015,Staff Costs,People Places & Services Directorate,Whitehall & Industry Group,2150380,780,Not Applicable
Department for Business Innovation and Skills,Intellectual Property Office,16/09/2015,Staff Costs,Patents Directorate,European Patent Office,40247752,490.3,Not Applicable
Department for Business Innovation and Skills,Intellectual Property Office,16/09/2015,Staff Costs,Patents Directorate,European Patent Office,40247760,490.3,Not Applicable
Department for Business Innovation and Skills,Intellectual Property Office,29/09/2015,Staff Costs,International Policy Directorate,European Institute of Public Admin,45150944,847.97,Not Applicable
Department for Business Innovation and Skills,Intellectual Property Office,16/09/2015,Staff Costs,Innovation Directorate,Market Research Society,100030309,546,Not Applicable
Department for Business Innovation and Skills,Intellectual Property Office,23/09/2015,Staff Costs,People Places & Services Directorate,Welsh Assembly Government,1800059207,480,Not Applicable
Department for Business Innovation and Skills,Intellectual Property Office,07/09/2015,Staff Costs,People Places & Services Directorate,Teamworks,2488/15/IPO/SUP/,135,Not Applicable
Department for Business Innovation and Skills,Intellectual Property Office,08/09/2015,Staff Costs,People Places & Services Directorate,Acorns Nurseries Ltd,AP201502PO,4153.5,Not Applicable
Department for Business Innovation and Skills,Intellectual Property Office,07/09/2015,Staff Costs,People Places & Services Directorate,Acorn Recruitment Ltd,APS0764,3001.98,Not Applicable
Department for Business Innovation and Skills,Intellectual Property Office,30/09/2015,Staff Costs,Finance Directorate,Advanced Business Solutions,ARIN-99021244,135.25,Not Applicable
Department for Business Innovation and Skills,Intellectual Property Office,09/09/2015,Staff Costs,People Places & Services Directorate,Capita Business Services  Ltd,C11907,-1078.8,Not Applicable
Department for Business Innovation and Skills,Intellectual Property Office,02/09/2015,Staff Costs,People Places & Services Directorate,British Red Cross,C454106,-318,Not Applicable
Department for Business Innovation and Skills,Intellectual Property Office,02/09/2015,Staff Costs,People Places & Services Directorate,British Red Cross,C457106,-318,Not Applicable
Department for Business Innovation and Skills,Intellectual Property Office,29/09/2015,Staff Costs,People Places & Services Directorate,"lynda.com, Inc.",INV02751430,2840.34,Not Applicable
Department for Business Innovation and Skills,Intellectual Property Office,24/09/2015,Staff Costs,Finance Directorate,Companies House,IP0000188-REFUND,1711.6,Not Applicable
Department for Business Innovation and Skills,Intellectual Property Office,21/09/2015,Staff Costs,IT Directorate,QA Ltd,ISL129728,11400,Not Applicable
Department for Business Innovation and Skills,Intellectual Property Office,09/09/2015,Staff Costs,IT Directorate,LA International Computer Consultants Lt,LA344948,2599.62,Not Applicable
Department for Business Innovation and Skills,Intellectual Property Office,15/09/2015,Staff Costs,People Places & Services Directorate,British Red Cross,N956438,318,Not Applicable
Department for Business Innovation and Skills,Intellectual Property Office,15/09/2015,Staff Costs,People Places & Services Directorate,British Red Cross,N972032,318,Not Applicable
Department for Business Innovation and Skills,Intellectual Property Office,02/09/2015,Staff Costs,People Places & Services Directorate,British Red Cross,N979641,318,Not Applicable
Department for Business Innovation and Skills,Intellectual Property Office,08/09/2015,Staff Costs,People Places & Services Directorate,British Red Cross,N981016,318,Not Applicable
Department for Business Innovation and Skills,Intellectual Property Office,02/09/2015,Staff Costs,People Places & Services Directorate,British Red Cross,N981534,318,Not Applicable
Department for Business Innovation and Skills,Intellectual Property Office,21/09/2015,Staff Costs,People Places & Services Directorate,Knowledge Academy,SO1086646,3453.6,Not Applicable
Department for Business Innovation and Skills,Intellectual Property Office,09/09/2015,Staff Costs,People Places & Services Directorate,Capita Business Services  Ltd,X73417,66,Not Applicable
Department for Business Innovation and Skills,Intellectual Property Office,09/09/2015,Staff Costs,People Places & Services Directorate,Capita Business Services  Ltd,X74641,53.28,Not Applicable
Department for Business Innovation and Skills,Intellectual Property Office,09/09/2015,Staff Costs,People Places & Services Directorate,Capita Business Services  Ltd,X75290,2414.4,Not Applicable
Department for Business Innovation and Skills,Intellectual Property Office,09/09/2015,Staff Costs,Finance Directorate,Capita Business Services  Ltd,X75723,14191.2,Not Applicable
Department for Business Innovation and Skills,Intellectual Property Office,09/09/2015,Staff Costs,People Places & Services Directorate,Capita Business Services  Ltd,X75724,1552.8,Not Applicable
Department for Business Innovation and Skills,Intellectual Property Office,09/09/2015,Staff Costs,People Places & Services Directorate,Capita Business Services  Ltd,X77257,6631.2,Not Applicable
Department for Business Innovation and Skills,Intellectual Property Office,09/09/2015,Staff Costs,International Policy Directorate,Capita Business Services  Ltd,X78255,794.4,Not Applicable
Department for Business Innovation and Skills,Intellectual Property Office,01/09/2015,Staff Costs,International Policy Directorate,Capita Business Services  Ltd,X78256,379.2,Not Applicable
Department for Business Innovation and Skills,Intellectual Property Office,17/09/2015,Staff Costs,People Places & Services Directorate,Capita Business Services  Ltd,X79658,7662,Not Applicable
Department for Business Innovation and Skills,Intellectual Property Office,24/09/2015,Staff Costs,People Places & Services Directorate,Capita Business Services  Ltd,X80390,212.4,Not Applicable
Department for Business Innovation and Skills,Intellectual Property Office,22/09/2015,Staff Costs,People Places & Services Directorate,Capita Business Services  Ltd,X80649,1207.2,Not Applicable
Department for Business Innovation and Skills,Intellectual Property Office,25/09/2015,Supporting UK Business,Innovation Directorate,INNGOT LTD,3,2600,Not Applicable
Department for Business Innovation and Skills,Intellectual Property Office,16/09/2015,Supporting UK Business,Innovation Directorate,Red Beetle Films Ltd,25,2562,Not Applicable
Department for Business Innovation and Skills,Intellectual Property Office,14/09/2015,Supporting UK Business,Innovation Directorate,Stannard & Stannard,394,2600,Not Applicable
Department for Business Innovation and Skills,Intellectual Property Office,14/09/2015,Supporting UK Business,Innovation Directorate,Coller IP Management Ltd,7478,3000,Not Applicable
Department for Business Innovation and Skills,Intellectual Property Office,10/09/2015,Supporting UK Business,Innovation Directorate,FOREIGN & COMMONWEALTH OFFICE,1077901,3386.92,Not Applicable
Department for Business Innovation and Skills,Intellectual Property Office,16/09/2015,Supporting UK Business,Innovation Directorate,FOREIGN & COMMONWEALTH OFFICE,1081176,1458.37,Not Applicable
Department for Business Innovation and Skills,Intellectual Property Office,25/09/2015,Supporting UK Business,Innovation Directorate,FOREIGN & COMMONWEALTH OFFICE,1081299,11074.51,Not Applicable
Department for Business Innovation and Skills,Intellectual Property Office,25/09/2015,Supporting UK Business,Copyright and Enforcement Directorate,City of London Police,4153966,675921.04,Not Applicable
Department for Business Innovation and Skills,Intellectual Property Office,23/09/2015,Supporting UK Business,Innovation Directorate,Wilson Gunn,47174M,2600,Not Applicable
Department for Business Innovation and Skills,Intellectual Property Office,17/09/2015,Supporting UK Business,Innovation Directorate,Lean IP,INV2032,3000,Not Applicable
Department for Business Innovation and Skills,Intellectual Property Office,18/09/2015,Supporting UK Business,Innovation Directorate,ICIPIA Ltd,IPO009,3000,Not Applicable
Department for Business Innovation and Skills,Intellectual Property Office,25/09/2015,Supporting UK Business,Innovation Directorate,INNGOT LTD,L1509/3,2600,Not Applicable
Department for Business Innovation and Skills,Intellectual Property Office,30/09/2015,Supporting UK Business,Innovation Directorate,Perfectmotion Ltd,PMM21072015,4315.68,Not Applicable
Department for Business Innovation and Skills,Intellectual Property Office,08/09/2015,Telecoms,IT Directorate,ZEN INTERNET LIMITED,19081241,167.93,Not Applicable
Department for Business Innovation and Skills,Intellectual Property Office,08/09/2015,Telecoms,IT Directorate,ZEN INTERNET LIMITED,19090557,30,Not Applicable
Department for Business Innovation and Skills,Intellectual Property Office,07/09/2015,Telecoms,IT Directorate,ZEN INTERNET LIMITED,19096095,156,Not Applicable
Department for Business Innovation and Skills,Intellectual Property Office,07/09/2015,Telecoms,IT Directorate,ZEN INTERNET LIMITED,19116954,212.11,Not Applicable
Department for Business Innovation and Skills,Intellectual Property Office,14/09/2015,Telecoms,IT Directorate,ZEN INTERNET LIMITED,19137972,39.1,Not Applicable
Department for Business Innovation and Skills,Intellectual Property Office,14/09/2015,Telecoms,IT Directorate,ZEN INTERNET LIMITED,19145793,15.11,Not Applicable
Department for Business Innovation and Skills,Intellectual Property Office,14/09/2015,Telecoms,IT Directorate,ZEN INTERNET LIMITED,19148766,9.13,Not Applicable
Department for Business Innovation and Skills,Intellectual Property Office,14/09/2015,Telecoms,IT Directorate,ZEN INTERNET LIMITED,19163524,4802.92,Not Applicable
Department for Business Innovation and Skills,Intellectual Property Office,14/09/2015,Telecoms,IT Directorate,ZEN INTERNET LIMITED,19174332,30,Not Applicable
Department for Business Innovation and Skills,Intellectual Property Office,25/09/2015,Telecoms,IT Directorate,ZEN INTERNET LIMITED,19175334,-7.52,Not Applicable
Department for Business Innovation and Skills,Intellectual Property Office,25/09/2015,Telecoms,IT Directorate,ZEN INTERNET LIMITED,19175335,-9.8,Not Applicable
Department for Business Innovation and Skills,Intellectual Property Office,25/09/2015,Telecoms,IT Directorate,ZEN INTERNET LIMITED,19191716,-3.64,Not Applicable
Department for Business Innovation and Skills,Intellectual Property Office,25/09/2015,Telecoms,IT Directorate,ZEN INTERNET LIMITED,19211765,-4.9,Not Applicable
Department for Business Innovation and Skills,Intellectual Property Office,25/09/2015,Telecoms,IT Directorate,ZEN INTERNET LIMITED,19236705,342.01,Not Applicable
Department for Business Innovation and Skills,Intellectual Property Office,25/09/2015,Telecoms,IT Directorate,ZEN INTERNET LIMITED,19237472,-3.18,Not Applicable
Department for Business Innovation and Skills,Intellectual Property Office,25/09/2015,Telecoms,IT Directorate,ZEN INTERNET LIMITED,19237473,-4.15,Not Applicable
Department for Business Innovation and Skills,Intellectual Property Office,23/09/2015,Telecoms,IT Directorate,EE Ltd,1208036060,4890.33,Not Applicable
Department for Business Innovation and Skills,Intellectual Property Office,24/09/2015,Telecoms,IT Directorate,VIRGIN MEDIA,210939001-18SEP,52.97,Not Applicable
Department for Business Innovation and Skills,Intellectual Property Office,17/09/2015,Telecoms,IT Directorate,VIRGIN MEDIA,291879201-14SEP,72.64,Not Applicable
Department for Business Innovation and Skills,Intellectual Property Office,11/09/2015,Telecoms,IT Directorate,Virgin Media,409092201-04SEP1,482.57,Not Applicable
Department for Business Innovation and Skills,Intellectual Property Office,11/09/2015,Telecoms,IT Directorate,Virgin Media,414650701-09SEP,109.18,Not Applicable
Department for Business Innovation and Skills,Intellectual Property Office,11/09/2015,Telecoms,IT Directorate,Virgin Media,414673601-04SEP1,251.64,Not Applicable
Department for Business Innovation and Skills,Intellectual Property Office,11/09/2015,Telecoms,IT Directorate,Virgin Media,414781801-04SEP,2.93,Not Applicable
Department for Business Innovation and Skills,Intellectual Property Office,07/09/2015,Telecoms,IT Directorate,Virgin Media,416860501-24AUG,53.23,Not Applicable
Department for Business Innovation and Skills,Intellectual Property Office,18/09/2015,Telecoms,IT Directorate,Virgin Media,435496901-15SEP,46.93,Not Applicable
Department for Business Innovation and Skills,Intellectual Property Office,08/09/2015,Telecoms,IT Directorate,Virgin Media,439936401-02SEP,81.56,Not Applicable
Department for Business Innovation and Skills,Intellectual Property Office,08/09/2015,Telecoms,IT Directorate,Virgin Media,440030601-02SEP,47.2,Not Applicable
Department for Business Innovation and Skills,Intellectual Property Office,11/09/2015,Telecoms,IT Directorate,Virgin Media,441057501-09SEP,46.81,Not Applicable
Department for Business Innovation and Skills,Intellectual Property Office,17/09/2015,Telecoms,IT Directorate,Virgin Media,441066601-11SEP,47.27,Not Applicable
Department for Business Innovation and Skills,Intellectual Property Office,11/09/2015,Telecoms,IT Directorate,Virgin Media,441626201-09SEP,40.91,Not Applicable
Department for Business Innovation and Skills,Intellectual Property Office,21/09/2015,Telecoms,IT Directorate,Virgin Media,441626201-10AUG,45.08,Not Applicable
Department for Business Innovation and Skills,Intellectual Property Office,11/09/2015,Telecoms,IT Directorate,Virgin Media,441626301-09SEP,46.85,Not Applicable
Department for Business Innovation and Skills,Intellectual Property Office,17/09/2015,Telecoms,IT Directorate,Virgin Media,441885101-11SEP,60,Not Applicable
Department for Business Innovation and Skills,Intellectual Property Office,17/09/2015,Telecoms,IT Directorate,Virgin Media,441885201-11SEP,60.79,Not Applicable
Department for Business Innovation and Skills,Intellectual Property Office,08/09/2015,Telecoms,IT Directorate,Virgin Media,441893301-02SEP,60.08,Not Applicable
Department for Business Innovation and Skills,Intellectual Property Office,11/09/2015,Telecoms,IT Directorate,Virgin Media,441932801-09SEP,67.15,Not Applicable
Department for Business Innovation and Skills,Intellectual Property Office,07/09/2015,Telecoms,IT Directorate,Virgin Media,441938301-29APR,66.49,Not Applicable
Department for Business Innovation and Skills,Intellectual Property Office,18/09/2015,Telecoms,IT Directorate,Virgin Media,441976801-15SEP,60.7,Not Applicable
Department for Business Innovation and Skills,Intellectual Property Office,08/09/2015,Telecoms,IT Directorate,Virgin Media,442061801-02SEP,59.15,Not Applicable
Department for Business Innovation and Skills,Intellectual Property Office,21/09/2015,Telecoms,IT Directorate,Virgin Media,442137701-10AUG,59.06,Not Applicable
Department for Business Innovation and Skills,Intellectual Property Office,18/09/2015,Telecoms,IT Directorate,Virgin Media,442140501-15SEP,59.64,Not Applicable
Department for Business Innovation and Skills,Intellectual Property Office,08/09/2015,Telecoms,IT Directorate,Virgin Media,442217001-02SEP,66.61,Not Applicable
Department for Business Innovation and Skills,Intellectual Property Office,07/09/2015,Telecoms,IT Directorate,Virgin Media,442366301-29APR,73.54,Not Applicable
Department for Business Innovation and Skills,Intellectual Property Office,08/09/2015,Telecoms,IT Directorate,Virgin Media,442386001-02SEP,74.56,Not Applicable
Department for Business Innovation and Skills,Intellectual Property Office,11/09/2015,Telecoms,IT Directorate,Virgin Media,442481401-04SEP,74.45,Not Applicable
Department for Business Innovation and Skills,Intellectual Property Office,09/09/2015,Telecoms,IT Directorate,Virgin Media,442485301-04SEP,72,Not Applicable
Department for Business Innovation and Skills,Intellectual Property Office,17/09/2015,Telecoms,IT Directorate,Virgin Media,688514801-10SEP,66.14,Not Applicable
Department for Business Innovation and Skills,Intellectual Property Office,24/09/2015,Telecoms,IT Directorate,VIRGIN MEDIA,740075701-16SEP,36.13,Not Applicable
Department for Business Innovation and Skills,Intellectual Property Office,24/09/2015,Telecoms,IT Directorate,VIRGIN MEDIA,740347401-21SEP,50.41,Not Applicable
Department for Business Innovation and Skills,Intellectual Property Office,11/09/2015,Telecoms,IT Directorate,VIRGIN MEDIA,745653601-08SEP,67.79,Not Applicable
Department for Business Innovation and Skills,Intellectual Property Office,18/09/2015,Telecoms,IT Directorate,Virgin Media,874902401-15SEP,75.52,Not Applicable
Department for Business Innovation and Skills,Intellectual Property Office,08/09/2015,Telecoms,IT Directorate,Virgin Media,917218-064,554.56,Not Applicable
Department for Business Innovation and Skills,Intellectual Property Office,07/09/2015,Telecoms,IT Directorate,THREE,AHJ27538319,864.22,Not Applicable
Department for Business Innovation and Skills,Intellectual Property Office,24/09/2015,Telecoms,IT Directorate,THREE,AIJ28979434,191.87,Not Applicable
Department for Business Innovation and Skills,Intellectual Property Office,08/09/2015,Telecoms,IT Directorate,VODAFONE LIMITED,UK10/092015/2153,3322.08,Not Applicable
Department for Business Innovation and Skills,Intellectual Property Office,22/09/2015,Telecoms,IT Directorate,British  Telecom,VP02239170M16501,8621.59,Not Applicable
Department for Business Innovation and Skills,Intellectual Property Office,02/09/2015,Travel & Subsistence,People Places & Services Directorate,Veezu Ltd T/A Dragon Taxis (Newport),4346,94.2,Not Applicable
Department for Business Innovation and Skills,Intellectual Property Office,02/09/2015,Travel & Subsistence,People Places & Services Directorate,Veezu Ltd T/A Dragon Taxis (Newport),4346,7.8,Not Applicable
Department for Business Innovation and Skills,Intellectual Property Office,02/09/2015,Travel & Subsistence,Copyright and Enforcement Directorate,Veezu Ltd T/A Dragon Taxis (Newport),4346,133.8,Not Applicable
Department for Business Innovation and Skills,Intellectual Property Office,02/09/2015,Travel & Subsistence,Innovation Directorate,Veezu Ltd T/A Dragon Taxis (Newport),4346,57.6,Not Applicable
Department for Business Innovation and Skills,Intellectual Property Office,02/09/2015,Travel & Subsistence,Copyright and Enforcement Directorate,Veezu Ltd T/A Dragon Taxis (Newport),4346,7.8,Not Applicable
Department for Business Innovation and Skills,Intellectual Property Office,02/09/2015,Travel & Subsistence,Finance Directorate,Veezu Ltd T/A Dragon Taxis (Newport),4346,52.8,Not Applicable
Department for Business Innovation and Skills,Intellectual Property Office,02/09/2015,Travel & Subsistence,Copyright and Enforcement Directorate,Veezu Ltd T/A Dragon Taxis (Newport),4346,7.8,Not Applicable
Department for Business Innovation and Skills,Intellectual Property Office,02/09/2015,Travel & Subsistence,Innovation Directorate,Veezu Ltd T/A Dragon Taxis (Newport),4346,62.4,Not Applicable
Department for Business Innovation and Skills,Intellectual Property Office,02/09/2015,Travel & Subsistence,International Policy Directorate,Veezu Ltd T/A Dragon Taxis (Newport),4346,154.2,Not Applicable
Department for Business Innovation and Skills,Intellectual Property Office,02/09/2015,Travel & Subsistence,International Policy Directorate,Veezu Ltd T/A Dragon Taxis (Newport),4346,15,Not Applicable
Department for Business Innovation and Skills,Intellectual Property Office,30/09/2015,Travel & Subsistence,Trade Marks Directorate,Professor R E Annand,53051,249.1,Not Applicable
Department for Business Innovation and Skills,Intellectual Property Office,30/09/2015,Travel & Subsistence,Copyright and Enforcement Directorate,Personal expenses name witheld,52901A,120,Not Applicable
Department for Business Innovation and Skills,Intellectual Property Office,17/09/2015,Travel & Subsistence,People Places & Services Directorate,ING Belgique SA,ACCOMM JUN15,57.68,Not Applicable
Department for Business Innovation and Skills,Intellectual Property Office,17/09/2015,Travel & Subsistence,Copyright and Enforcement Directorate,ING Belgique SA,ACCOMM JUN15,57.68,Not Applicable
Department for Business Innovation and Skills,Intellectual Property Office,17/09/2015,Travel & Subsistence,International Policy Directorate,ING Belgique SA,ACCOMM JUN15,57.69,Not Applicable
Department for Business Innovation and Skills,Intellectual Property Office,11/09/2015,Travel & Subsistence,International Policy Directorate,Personal expenses name witheld,ER131648,21.25,Not Applicable
Department for Business Innovation and Skills,Intellectual Property Office,01/09/2015,Travel & Subsistence,People Places & Services Directorate,Personal expenses name witheld,ER132642,17.9,Not Applicable
Department for Business Innovation and Skills,Intellectual Property Office,03/09/2015,Travel & Subsistence,Innovation Directorate,Personal expenses name witheld,ER132883,49.86,Not Applicable
Department for Business Innovation and Skills,Intellectual Property Office,03/09/2015,Travel & Subsistence,People Places & Services Directorate,Personal expenses name witheld,ER133245,18.6,Not Applicable
Department for Business Innovation and Skills,Intellectual Property Office,16/09/2015,Travel & Subsistence,Patents Directorate,Personal expenses name witheld,ER133612,85.85,Not Applicable
Department for Business Innovation and Skills,Intellectual Property Office,11/09/2015,Travel & Subsistence,Copyright and Enforcement Directorate,Personal expenses name witheld,ER133613,166.7,Not Applicable
Department for Business Innovation and Skills,Intellectual Property Office,01/09/2015,Travel & Subsistence,People Places & Services Directorate,Personal expenses name witheld,ER133623,17.3,Not Applicable
Department for Business Innovation and Skills,Intellectual Property Office,01/09/2015,Travel & Subsistence,People Places & Services Directorate,Personal expenses name witheld,ER133633,17.5,Not Applicable
Department for Business Innovation and Skills,Intellectual Property Office,11/09/2015,Travel & Subsistence,People Places & Services Directorate,Personal expenses name witheld,ER133638,163.35,Not Applicable
Department for Business Innovation and Skills,Intellectual Property Office,01/09/2015,Travel & Subsistence,Patents Directorate,Personal expenses name witheld,ER133653,5.05,Not Applicable
Department for Business Innovation and Skills,Intellectual Property Office,01/09/2015,Travel & Subsistence,IT Directorate,Personal expenses name witheld,ER133678,9.3,Not Applicable
Department for Business Innovation and Skills,Intellectual Property Office,22/09/2015,Travel & Subsistence,International Policy Directorate,Personal expenses name witheld,ER133680,1132.96,Not Applicable
Department for Business Innovation and Skills,Intellectual Property Office,01/09/2015,Travel & Subsistence,People Places & Services Directorate,Personal expenses name witheld,ER133690,24.3,Not Applicable
Department for Business Innovation and Skills,Intellectual Property Office,01/09/2015,Travel & Subsistence,Innovation Directorate,Personal expenses name witheld,ER133693,127.8,Not Applicable
Department for Business Innovation and Skills,Intellectual Property Office,03/09/2015,Travel & Subsistence,IT Directorate,Personal expenses name witheld,ER133697,9.3,Not Applicable
Department for Business Innovation and Skills,Intellectual Property Office,03/09/2015,Travel & Subsistence,Patents Directorate,Personal expenses name witheld,ER133698,19.3,Not Applicable
Department for Business Innovation and Skills,Intellectual Property Office,03/09/2015,Travel & Subsistence,International Policy Directorate,Personal expenses name witheld,ER133700,13.7,Not Applicable
Department for Business Innovation and Skills,Intellectual Property Office,03/09/2015,Travel & Subsistence,International Policy Directorate,Personal expenses name witheld,ER133701,322.43,Not Applicable
Department for Business Innovation and Skills,Intellectual Property Office,03/09/2015,Travel & Subsistence,Innovation Directorate,Personal expenses name witheld,ER133702,35.2,Not Applicable
Department for Business Innovation and Skills,Intellectual Property Office,03/09/2015,Travel & Subsistence,Innovation Directorate,Personal expenses name witheld,ER133704,125.42,Not Applicable
Department for Business Innovation and Skills,Intellectual Property Office,03/09/2015,Travel & Subsistence,Copyright and Enforcement Directorate,Personal expenses name witheld,ER133705,13.9,Not Applicable
Department for Business Innovation and Skills,Intellectual Property Office,08/09/2015,Travel & Subsistence,People Places & Services Directorate,Personal expenses name witheld,ER133706,4.95,Not Applicable
Department for Business Innovation and Skills,Intellectual Property Office,03/09/2015,Travel & Subsistence,International Policy Directorate,Personal expenses name witheld,ER133707,13.9,Not Applicable
Department for Business Innovation and Skills,Intellectual Property Office,11/09/2015,Travel & Subsistence,International Policy Directorate,Personal expenses name witheld,ER133709,13.9,Not Applicable
Department for Business Innovation and Skills,Intellectual Property Office,08/09/2015,Travel & Subsistence,IT Directorate,Personal expenses name witheld,ER133710,123.6,Not Applicable
Department for Business Innovation and Skills,Intellectual Property Office,08/09/2015,Travel & Subsistence,Innovation Directorate,Personal expenses name witheld,ER133712,285.4,Not Applicable
Department for Business Innovation and Skills,Intellectual Property Office,08/09/2015,Travel & Subsistence,Copyright and Enforcement Directorate,Personal expenses name witheld,ER133727,35,Not Applicable
Department for Business Innovation and Skills,Intellectual Property Office,08/09/2015,Travel & Subsistence,Innovation Directorate,Personal expenses name witheld,ER133728,45,Not Applicable
Department for Business Innovation and Skills,Intellectual Property Office,08/09/2015,Travel & Subsistence,Innovation Directorate,Personal expenses name witheld,ER133729,36.25,Not Applicable
Department for Business Innovation and Skills,Intellectual Property Office,08/09/2015,Travel & Subsistence,Patents Directorate,Personal expenses name witheld,ER133731,238.75,Not Applicable
Department for Business Innovation and Skills,Intellectual Property Office,08/09/2015,Travel & Subsistence,International Policy Directorate,Personal expenses name witheld,ER133732,181.21,Not Applicable
Department for Business Innovation and Skills,Intellectual Property Office,08/09/2015,Travel & Subsistence,IT Directorate,Personal expenses name witheld,ER133733,9.3,Not Applicable
Department for Business Innovation and Skills,Intellectual Property Office,11/09/2015,Travel & Subsistence,Patents Directorate,Personal expenses name witheld,ER133734,210.14,Not Applicable
Department for Business Innovation and Skills,Intellectual Property Office,08/09/2015,Travel & Subsistence,Innovation Directorate,Personal expenses name witheld,ER133735,508.2,Not Applicable
Department for Business Innovation and Skills,Intellectual Property Office,08/09/2015,Travel & Subsistence,Patents Directorate,Personal expenses name witheld,ER133736,404.54,Not Applicable
Department for Business Innovation and Skills,Intellectual Property Office,08/09/2015,Travel & Subsistence,Patents Directorate,Personal expenses name witheld,ER133737,233.09,Not Applicable
Department for Business Innovation and Skills,Intellectual Property Office,14/09/2015,Travel & Subsistence,Copyright and Enforcement Directorate,Personal expenses name witheld,ER133738,712.92,Not Applicable
Department for Business Innovation and Skills,Intellectual Property Office,08/09/2015,Travel & Subsistence,Innovation Directorate,Personal expenses name witheld,ER133739,655.3,Not Applicable
Department for Business Innovation and Skills,Intellectual Property Office,08/09/2015,Travel & Subsistence,People Places & Services Directorate,Personal expenses name witheld,ER133741,9.3,Not Applicable
Department for Business Innovation and Skills,Intellectual Property Office,08/09/2015,Travel & Subsistence,Patents Directorate,Personal expenses name witheld,ER133745,22.65,Not Applicable
Department for Business Innovation and Skills,Intellectual Property Office,08/09/2015,Travel & Subsistence,Patents Directorate,Personal expenses name witheld,ER133746,12.1,Not Applicable
Department for Business Innovation and Skills,Intellectual Property Office,11/09/2015,Travel & Subsistence,International Policy Directorate,Personal expenses name witheld,ER133747,23.15,Not Applicable
Department for Business Innovation and Skills,Intellectual Property Office,11/09/2015,Travel & Subsistence,Copyright and Enforcement Directorate,Personal expenses name witheld,ER133748,33.05,Not Applicable
Department for Business Innovation and Skills,Intellectual Property Office,22/09/2015,Travel & Subsistence,IT Directorate,Personal expenses name witheld,ER133749,35.3,Not Applicable
Department for Business Innovation and Skills,Intellectual Property Office,11/09/2015,Travel & Subsistence,Innovation Directorate,Personal expenses name witheld,ER133750,298.5,Not Applicable
Department for Business Innovation and Skills,Intellectual Property Office,11/09/2015,Travel & Subsistence,International Policy Directorate,Personal expenses name witheld,ER133751,1392.42,Not Applicable
Department for Business Innovation and Skills,Intellectual Property Office,11/09/2015,Travel & Subsistence,Innovation Directorate,Personal expenses name witheld,ER133752,220,Not Applicable
Department for Business Innovation and Skills,Intellectual Property Office,11/09/2015,Travel & Subsistence,International Policy Directorate,Personal expenses name witheld,ER133753,102.55,Not Applicable
Department for Business Innovation and Skills,Intellectual Property Office,11/09/2015,Travel & Subsistence,International Policy Directorate,Personal expenses name witheld,ER133755,205.86,Not Applicable
Department for Business Innovation and Skills,Intellectual Property Office,11/09/2015,Travel & Subsistence,Innovation Directorate,Personal expenses name witheld,ER133771,39.5,Not Applicable
Department for Business Innovation and Skills,Intellectual Property Office,11/09/2015,Travel & Subsistence,Innovation Directorate,Personal expenses name witheld,ER133772,4.25,Not Applicable
Department for Business Innovation and Skills,Intellectual Property Office,30/09/2015,Travel & Subsistence,Patents Directorate,Personal expenses name witheld,ER133773,20,Not Applicable
Department for Business Innovation and Skills,Intellectual Property Office,11/09/2015,Travel & Subsistence,Innovation Directorate,Personal expenses name witheld,ER133775,159.9,Not Applicable
Department for Business Innovation and Skills,Intellectual Property Office,11/09/2015,Travel & Subsistence,Innovation Directorate,Personal expenses name witheld,ER133776,129.4,Not Applicable
Department for Business Innovation and Skills,Intellectual Property Office,16/09/2015,Travel & Subsistence,IT Directorate,Personal expenses name witheld,ER133777,35.7,Not Applicable
Department for Business Innovation and Skills,Intellectual Property Office,11/09/2015,Travel & Subsistence,International Policy Directorate,Personal expenses name witheld,ER133778,14.9,Not Applicable
Department for Business Innovation and Skills,Intellectual Property Office,11/09/2015,Travel & Subsistence,People Places & Services Directorate,Personal expenses name witheld,ER133781,9.3,Not Applicable
Department for Business Innovation and Skills,Intellectual Property Office,11/09/2015,Travel & Subsistence,IT Directorate,Personal expenses name witheld,ER133782,9.3,Not Applicable
Department for Business Innovation and Skills,Intellectual Property Office,11/09/2015,Travel & Subsistence,Patents Directorate,Personal expenses name witheld,ER133784,18.72,Not Applicable
Department for Business Innovation and Skills,Intellectual Property Office,30/09/2015,Travel & Subsistence,Innovation Directorate,Personal expenses name witheld,ER133785,452,Not Applicable
Department for Business Innovation and Skills,Intellectual Property Office,11/09/2015,Travel & Subsistence,Innovation Directorate,Personal expenses name witheld,ER133786,382.86,Not Applicable
Department for Business Innovation and Skills,Intellectual Property Office,24/09/2015,Travel & Subsistence,Innovation Directorate,Personal expenses name witheld,ER133789,34.9,Not Applicable
Department for Business Innovation and Skills,Intellectual Property Office,21/09/2015,Travel & Subsistence,Patents Directorate,Personal expenses name witheld,ER133790,34.7,Not Applicable
Department for Business Innovation and Skills,Intellectual Property Office,30/09/2015,Travel & Subsistence,Patents Directorate,Personal expenses name witheld,ER133791,28.81,Not Applicable
Department for Business Innovation and Skills,Intellectual Property Office,18/09/2015,Travel & Subsistence,Finance Directorate,Personal expenses name witheld,ER133795,11,Not Applicable
Department for Business Innovation and Skills,Intellectual Property Office,21/09/2015,Travel & Subsistence,Innovation Directorate,Personal expenses name witheld,ER133796,3.8,Not Applicable
Department for Business Innovation and Skills,Intellectual Property Office,21/09/2015,Travel & Subsistence,People Places & Services Directorate,Personal expenses name witheld,ER133798,7.2,Not Applicable
Department for Business Innovation and Skills,Intellectual Property Office,16/09/2015,Travel & Subsistence,IT Directorate,Personal expenses name witheld,ER133799,192.67,Not Applicable
Department for Business Innovation and Skills,Intellectual Property Office,14/09/2015,Travel & Subsistence,International Policy Directorate,Personal expenses name witheld,ER133800,13.7,Not Applicable
Department for Business Innovation and Skills,Intellectual Property Office,14/09/2015,Travel & Subsistence,Innovation Directorate,Personal expenses name witheld,ER133803,336.41,Not Applicable
Department for Business Innovation and Skills,Intellectual Property Office,21/09/2015,Travel & Subsistence,People Places & Services Directorate,Personal expenses name witheld,ER133804,27,Not Applicable
Department for Business Innovation and Skills,Intellectual Property Office,16/09/2015,Travel & Subsistence,IT Directorate,Personal expenses name witheld,ER133807,311.48,Not Applicable
Department for Business Innovation and Skills,Intellectual Property Office,16/09/2015,Travel & Subsistence,Innovation Directorate,Personal expenses name witheld,ER133807,185.7,Not Applicable
Department for Business Innovation and Skills,Intellectual Property Office,14/09/2015,Travel & Subsistence,Innovation Directorate,Personal expenses name witheld,ER133808,27.7,Not Applicable
Department for Business Innovation and Skills,Intellectual Property Office,14/09/2015,Travel & Subsistence,International Policy Directorate,Personal expenses name witheld,ER133810,17.3,Not Applicable
Department for Business Innovation and Skills,Intellectual Property Office,16/09/2015,Travel & Subsistence,International Policy Directorate,Personal expenses name witheld,ER133812,24.25,Not Applicable
Department for Business Innovation and Skills,Intellectual Property Office,16/09/2015,Travel & Subsistence,Innovation Directorate,Personal expenses name witheld,ER133814,297,Not Applicable
Department for Business Innovation and Skills,Intellectual Property Office,16/09/2015,Travel & Subsistence,Innovation Directorate,Personal expenses name witheld,ER133815,34.55,Not Applicable
Department for Business Innovation and Skills,Intellectual Property Office,21/09/2015,Travel & Subsistence,IT Directorate,Personal expenses name witheld,ER133816,375.99,Not Applicable
Department for Business Innovation and Skills,Intellectual Property Office,30/09/2015,Travel & Subsistence,Innovation Directorate,Personal expenses name witheld,ER133818,993.96,Not Applicable
Department for Business Innovation and Skills,Intellectual Property Office,18/09/2015,Travel & Subsistence,International Policy Directorate,Personal expenses name witheld,ER133819,28.5,Not Applicable
Department for Business Innovation and Skills,Intellectual Property Office,21/09/2015,Travel & Subsistence,Innovation Directorate,Personal expenses name witheld,ER133821,390.19,Not Applicable
Department for Business Innovation and Skills,Intellectual Property Office,21/09/2015,Travel & Subsistence,International Policy Directorate,Personal expenses name witheld,ER133824,747.67,Not Applicable
Department for Business Innovation and Skills,Intellectual Property Office,22/09/2015,Travel & Subsistence,People Places & Services Directorate,Personal expenses name witheld,ER133825,31.05,Not Applicable
Department for Business Innovation and Skills,Intellectual Property Office,21/09/2015,Travel & Subsistence,International Policy Directorate,Personal expenses name witheld,ER133826,15.7,Not Applicable
Department for Business Innovation and Skills,Intellectual Property Office,21/09/2015,Travel & Subsistence,People Places & Services Directorate,Personal expenses name witheld,ER133833,42.5,Not Applicable
Department for Business Innovation and Skills,Intellectual Property Office,22/09/2015,Travel & Subsistence,Innovation Directorate,Personal expenses name witheld,ER133835,98.15,Not Applicable
Department for Business Innovation and Skills,Intellectual Property Office,21/09/2015,Travel & Subsistence,Trade Marks Directorate,Personal expenses name witheld,ER133836,117.65,Not Applicable
Department for Business Innovation and Skills,Intellectual Property Office,21/09/2015,Travel & Subsistence,Patents Directorate,Personal expenses name witheld,ER133837,268.77,Not Applicable
Department for Business Innovation and Skills,Intellectual Property Office,18/09/2015,Travel & Subsistence,International Policy Directorate,Personal expenses name witheld,ER133841,1028.53,Not Applicable
Department for Business Innovation and Skills,Intellectual Property Office,18/09/2015,Travel & Subsistence,Copyright and Enforcement Directorate,Personal expenses name witheld,ER133842,260.96,Not Applicable
Department for Business Innovation and Skills,Intellectual Property Office,24/09/2015,Travel & Subsistence,Copyright and Enforcement Directorate,Personal expenses name witheld,ER133843,161.93,Not Applicable
Department for Business Innovation and Skills,Intellectual Property Office,21/09/2015,Travel & Subsistence,People Places & Services Directorate,Personal expenses name witheld,ER133845,72.9,Not Applicable
Department for Business Innovation and Skills,Intellectual Property Office,21/09/2015,Travel & Subsistence,International Policy Directorate,Personal expenses name witheld,ER133846,114.94,Not Applicable
Department for Business Innovation and Skills,Intellectual Property Office,21/09/2015,Travel & Subsistence,Innovation Directorate,Personal expenses name witheld,ER133847,377.57,Not Applicable
Department for Business Innovation and Skills,Intellectual Property Office,30/09/2015,Travel & Subsistence,Patents Directorate,Personal expenses name witheld,ER133848,84.33,Not Applicable
Department for Business Innovation and Skills,Intellectual Property Office,21/09/2015,Travel & Subsistence,People Places & Services Directorate,Personal expenses name witheld,ER133849,17.5,Not Applicable
Department for Business Innovation and Skills,Intellectual Property Office,21/09/2015,Travel & Subsistence,International Policy Directorate,Personal expenses name witheld,ER133850,35.65,Not Applicable
Department for Business Innovation and Skills,Intellectual Property Office,21/09/2015,Travel & Subsistence,IT Directorate,Personal expenses name witheld,ER133851,9.3,Not Applicable
Department for Business Innovation and Skills,Intellectual Property Office,21/09/2015,Travel & Subsistence,IT Directorate,Personal expenses name witheld,ER133852,9.3,Not Applicable
Department for Business Innovation and Skills,Intellectual Property Office,21/09/2015,Travel & Subsistence,International Policy Directorate,Personal expenses name witheld,ER133853,375.15,Not Applicable
Department for Business Innovation and Skills,Intellectual Property Office,21/09/2015,Travel & Subsistence,Innovation Directorate,Personal expenses name witheld,ER133854,217.9,Not Applicable
Department for Business Innovation and Skills,Intellectual Property Office,21/09/2015,Travel & Subsistence,International Policy Directorate,Personal expenses name witheld,ER133855,46,Not Applicable
Department for Business Innovation and Skills,Intellectual Property Office,21/09/2015,Travel & Subsistence,IT Directorate,Personal expenses name witheld,ER133856,255.71,Not Applicable
Department for Business Innovation and Skills,Intellectual Property Office,21/09/2015,Travel & Subsistence,Trade Marks Directorate,Personal expenses name witheld,ER133858,109.4,Not Applicable
Department for Business Innovation and Skills,Intellectual Property Office,21/09/2015,Travel & Subsistence,People Places & Services Directorate,Personal expenses name witheld,ER133859,39.75,Not Applicable
Department for Business Innovation and Skills,Intellectual Property Office,22/09/2015,Travel & Subsistence,People Places & Services Directorate,Personal expenses name witheld,ER133860,125.43,Not Applicable
Department for Business Innovation and Skills,Intellectual Property Office,21/09/2015,Travel & Subsistence,Innovation Directorate,Personal expenses name witheld,ER133862,350.23,Not Applicable
Department for Business Innovation and Skills,Intellectual Property Office,21/09/2015,Travel & Subsistence,Trade Marks Directorate,Personal expenses name witheld,ER133863,29.05,Not Applicable
Department for Business Innovation and Skills,Intellectual Property Office,24/09/2015,Travel & Subsistence,IT Directorate,Personal expenses name witheld,ER133867,118.95,Not Applicable
Department for Business Innovation and Skills,Intellectual Property Office,22/09/2015,Travel & Subsistence,Innovation Directorate,Personal expenses name witheld,ER133881,361.25,Not Applicable
Department for Business Innovation and Skills,Intellectual Property Office,24/09/2015,Travel & Subsistence,People Places & Services Directorate,Personal expenses name witheld,ER133882,132.43,Not Applicable
Department for Business Innovation and Skills,Intellectual Property Office,22/09/2015,Travel & Subsistence,People Places & Services Directorate,Personal expenses name witheld,ER133883,125.43,Not Applicable
Department for Business Innovation and Skills,Intellectual Property Office,24/09/2015,Travel & Subsistence,Trade Marks Directorate,Personal expenses name witheld,ER133884,209.3,Not Applicable
Department for Business Innovation and Skills,Intellectual Property Office,24/09/2015,Travel & Subsistence,People Places & Services Directorate,Personal expenses name witheld,ER133885,22.8,Not Applicable
Department for Business Innovation and Skills,Intellectual Property Office,30/09/2015,Travel & Subsistence,Patents Directorate,Personal expenses name witheld,ER133886,203.73,Not Applicable
Department for Business Innovation and Skills,Intellectual Property Office,24/09/2015,Travel & Subsistence,International Policy Directorate,Personal expenses name witheld,ER133887,1543.51,Not Applicable
Department for Business Innovation and Skills,Intellectual Property Office,24/09/2015,Travel & Subsistence,Innovation Directorate,Personal expenses name witheld,ER133888,169.99,Not Applicable
Department for Business Innovation and Skills,Intellectual Property Office,30/09/2015,Travel & Subsistence,International Policy Directorate,Personal expenses name witheld,ER133889,17.2,Not Applicable
Department for Business Innovation and Skills,Intellectual Property Office,30/09/2015,Travel & Subsistence,Patents Directorate,Personal expenses name witheld,ER133890,1219.66,Not Applicable
Department for Business Innovation and Skills,Intellectual Property Office,24/09/2015,Travel & Subsistence,International Policy Directorate,Personal expenses name witheld,ER133891,17.4,Not Applicable
Department for Business Innovation and Skills,Intellectual Property Office,24/09/2015,Travel & Subsistence,International Policy Directorate,Personal expenses name witheld,ER133893,173.35,Not Applicable
Department for Business Innovation and Skills,Intellectual Property Office,30/09/2015,Travel & Subsistence,Copyright and Enforcement Directorate,Personal expenses name witheld,ER133895,268.9,Not Applicable
Department for Business Innovation and Skills,Intellectual Property Office,30/09/2015,Travel & Subsistence,Patents Directorate,Personal expenses name witheld,ER133896,155.7,Not Applicable
Department for Business Innovation and Skills,Intellectual Property Office,30/09/2015,Travel & Subsistence,People Places & Services Directorate,Personal expenses name witheld,ER133897,219.84,Not Applicable
Department for Business Innovation and Skills,Intellectual Property Office,30/09/2015,Travel & Subsistence,International Policy Directorate,Personal expenses name witheld,ER133900,125,Not Applicable
Department for Business Innovation and Skills,Intellectual Property Office,30/09/2015,Travel & Subsistence,International Policy Directorate,Personal expenses name witheld,ER133901,33.2,Not Applicable
Department for Business Innovation and Skills,Intellectual Property Office,30/09/2015,Travel & Subsistence,Copyright and Enforcement Directorate,Personal expenses name witheld,ER133902,197.1,Not Applicable
Department for Business Innovation and Skills,Intellectual Property Office,30/09/2015,Travel & Subsistence,International Policy Directorate,Personal expenses name witheld,ER133904,143,Not Applicable
Department for Business Innovation and Skills,Intellectual Property Office,30/09/2015,Travel & Subsistence,Trade Marks Directorate,Personal expenses name witheld,ER133906,132.68,Not Applicable
Department for Business Innovation and Skills,Intellectual Property Office,30/09/2015,Travel & Subsistence,International Policy Directorate,Personal expenses name witheld,ER133918,93.15,Not Applicable
Department for Business Innovation and Skills,Intellectual Property Office,30/09/2015,Travel & Subsistence,International Policy Directorate,Personal expenses name witheld,ER133919,9.3,Not Applicable
Department for Business Innovation and Skills,Intellectual Property Office,30/09/2015,Travel & Subsistence,Copyright and Enforcement Directorate,Personal expenses name witheld,ER133921,20.4,Not Applicable
Department for Business Innovation and Skills,Intellectual Property Office,30/09/2015,Travel & Subsistence,People Places & Services Directorate,Personal expenses name witheld,ER133922,32.4,Not Applicable
Department for Business Innovation and Skills,Intellectual Property Office,30/09/2015,Travel & Subsistence,Copyright and Enforcement Directorate,Personal expenses name witheld,ER133923,9.3,Not Applicable
Department for Business Innovation and Skills,Intellectual Property Office,30/09/2015,Travel & Subsistence,Trade Marks Directorate,Personal expenses name witheld,ER133938,139.93,Not Applicable
Department for Business Innovation and Skills,Intellectual Property Office,30/09/2015,Travel & Subsistence,People Places & Services Directorate,Personal expenses name witheld,ER133940,208.9,Not Applicable
Department for Business Innovation and Skills,Intellectual Property Office,30/09/2015,Travel & Subsistence,Patents Directorate,Personal expenses name witheld,ER133943,220,Not Applicable
Department for Business Innovation and Skills,Intellectual Property Office,30/09/2015,Travel & Subsistence,People Places & Services Directorate,Personal expenses name witheld,ER133945,18.2,Not Applicable
Department for Business Innovation and Skills,Intellectual Property Office,30/09/2015,Travel & Subsistence,Copyright and Enforcement Directorate,Personal expenses name witheld,ER133947,16.9,Not Applicable
Department for Business Innovation and Skills,Intellectual Property Office,30/09/2015,Travel & Subsistence,Copyright and Enforcement Directorate,Personal expenses name witheld,ER133948,215.14,Not Applicable
Department for Business Innovation and Skills,Intellectual Property Office,30/09/2015,Travel & Subsistence,Copyright and Enforcement Directorate,Personal expenses name witheld,ER133949,1050,Not Applicable
Department for Business Innovation and Skills,Intellectual Property Office,30/09/2015,Travel & Subsistence,Innovation Directorate,Personal expenses name witheld,ER133950,14.46,Not Applicable
Department for Business Innovation and Skills,Intellectual Property Office,30/09/2015,Travel & Subsistence,Copyright and Enforcement Directorate,Personal expenses name witheld,ER133951,93,Not Applicable
Department for Business Innovation and Skills,Intellectual Property Office,30/09/2015,Travel & Subsistence,People Places & Services Directorate,Personal expenses name witheld,ER133952,211.9,Not Applicable
Department for Business Innovation and Skills,Intellectual Property Office,30/09/2015,Travel & Subsistence,International Policy Directorate,Personal expenses name witheld,ER133955,45.2,Not Applicable
Department for Business Innovation and Skills,Intellectual Property Office,30/09/2015,Travel & Subsistence,International Policy Directorate,Personal expenses name witheld,ER133956,18.6,Not Applicable
Department for Business Innovation and Skills,Intellectual Property Office,30/09/2015,Travel & Subsistence,International Policy Directorate,Personal expenses name witheld,ER133957,151.25,Not Applicable
Department for Business Innovation and Skills,Intellectual Property Office,30/09/2015,Travel & Subsistence,Trade Marks Directorate,Personal expenses name witheld,ER133959,146.3,Not Applicable
Department for Business Innovation and Skills,Intellectual Property Office,30/09/2015,Travel & Subsistence,Innovation Directorate,Personal expenses name witheld,ER133960,445.3,Not Applicable
Department for Business Innovation and Skills,Intellectual Property Office,30/09/2015,Travel & Subsistence,Trade Marks Directorate,Personal expenses name witheld,ER133961,146.9,Not Applicable
Department for Business Innovation and Skills,Intellectual Property Office,30/09/2015,Travel & Subsistence,Innovation Directorate,Personal expenses name witheld,ER133962,8.1,Not Applicable
Department for Business Innovation and Skills,Intellectual Property Office,30/09/2015,Travel & Subsistence,Innovation Directorate,Personal expenses name witheld,ER133963,127.8,Not Applicable
Department for Business Innovation and Skills,Intellectual Property Office,30/09/2015,Travel & Subsistence,People Places & Services Directorate,Personal expenses name witheld,ER133964,17.1,Not Applicable
Department for Business Innovation and Skills,Intellectual Property Office,30/09/2015,Travel & Subsistence,International Policy Directorate,Personal expenses name witheld,ER133965,170.3,Not Applicable
Department for Business Innovation and Skills,Intellectual Property Office,30/09/2015,Travel & Subsistence,Copyright and Enforcement Directorate,Personal expenses name witheld,ER133966,248.49,Not Applicable
Department for Business Innovation and Skills,Intellectual Property Office,30/09/2015,Travel & Subsistence,Finance Directorate,Personal expenses name witheld,ER133967,138.74,Not Applicable
Department for Business Innovation and Skills,Intellectual Property Office,30/09/2015,Travel & Subsistence,Finance Directorate,Personal expenses name witheld,ER133970,1126.87,Not Applicable
Department for Business Innovation and Skills,Intellectual Property Office,28/09/2015,Travel & Subsistence,Innovation Directorate,Leasedrive Velo Rental Management Ltd,RHI01392214,53.54,Not Applicable
Department for Business Innovation and Skills,Intellectual Property Office,17/09/2015,Travel & Subsistence,Patents Directorate,Leasedrive Velo Rental Management Ltd,RHI01396294,59.33,Not Applicable
Department for Business Innovation and Skills,Intellectual Property Office,11/09/2015,Travel & Subsistence,IT Directorate,Leasedrive Velo Rental Management Ltd,RHI01398441,286.49,Not Applicable
Department for Business Innovation and Skills,Intellectual Property Office,16/09/2015,Travel & Subsistence,Innovation Directorate,Leasedrive Velo Rental Management Ltd,RHI01399443,53.54,Not Applicable
Department for Business Innovation and Skills,Intellectual Property Office,17/09/2015,Travel & Subsistence,Copyright and Enforcement Directorate,Leasedrive Velo Rental Management Ltd,RHI01405188,107.09,Not Applicable
Department for Business Innovation and Skills,Intellectual Property Office,17/09/2015,Travel & Subsistence,Innovation Directorate,Leasedrive Velo Rental Management Ltd,RHI01405191,53.54,Not Applicable
Department for Business Innovation and Skills,Intellectual Property Office,17/09/2015,Travel & Subsistence,Patents Directorate,Leasedrive Velo Rental Management Ltd,RHI01415154,81.07,Not Applicable
Department for Business Innovation and Skills,Intellectual Property Office,16/09/2015,Travel & Subsistence,Innovation Directorate,Leasedrive Velo Rental Management Ltd,RHI01417196,134.24,Not Applicable
Department for Business Innovation and Skills,Intellectual Property Office,24/09/2015,Travel & Subsistence,Copyright and Enforcement Directorate,Leasedrive Velo Rental Management Ltd,RHI01419712,107.09,Not Applicable
Department for Business Innovation and Skills,Intellectual Property Office,17/09/2015,Travel & Subsistence,Innovation Directorate,Leasedrive Velo Rental Management Ltd,RHI01421104,134.24,Not Applicable
Department for Business Innovation and Skills,Intellectual Property Office,22/09/2015,Travel & Subsistence,Innovation Directorate,Leasedrive Velo Rental Management Ltd,RHI01421106,193.82,Not Applicable
Department for Business Innovation and Skills,Intellectual Property Office,17/09/2015,Travel & Subsistence,Innovation Directorate,Leasedrive Velo Rental Management Ltd,RHI01422514,53.54,Not Applicable
Department for Business Innovation and Skills,Intellectual Property Office,21/09/2015,Travel & Subsistence,Innovation Directorate,Leasedrive Velo Rental Management Ltd,RHI01424384,178.99,Not Applicable
Department for Business Innovation and Skills,Intellectual Property Office,23/09/2015,Travel & Subsistence,Innovation Directorate,Leasedrive Velo Rental Management Ltd,RHI01424385,145.37,Not Applicable
Department for Business Innovation and Skills,Intellectual Property Office,23/09/2015,Travel & Subsistence,People Places & Services Directorate,Leasedrive Velo Rental Management Ltd,RHI01424387,146.54,Not Applicable
Department for Business Innovation and Skills,Intellectual Property Office,28/09/2015,Travel & Subsistence,Innovation Directorate,Leasedrive Velo Rental Management Ltd,RHI01424388,191.69,Not Applicable
Department for Business Innovation and Skills,Intellectual Property Office,22/09/2015,Travel & Subsistence,IT Directorate,Leasedrive Velo Rental Management Ltd,RHI01427224,387.65,Not Applicable
Department for Business Innovation and Skills,Intellectual Property Office,21/09/2015,Travel & Subsistence,Innovation Directorate,Leasedrive Velo Rental Management Ltd,RHI01428752,107.09,Not Applicable
Department for Business Innovation and Skills,Intellectual Property Office,16/09/2015,Travel & Subsistence,Innovation Directorate,Leasedrive Velo Rental Management Ltd,RHI01435058,63.84,Not Applicable
Department for Business Innovation and Skills,Intellectual Property Office,30/09/2015,Travel & Subsistence,Copyright and Enforcement Directorate,Leasedrive Velo Rental Management Ltd,RHI01435060,52.42,Not Applicable
Department for Business Innovation and Skills,Intellectual Property Office,30/09/2015,Travel & Subsistence,Copyright and Enforcement Directorate,Leasedrive Velo Rental Management Ltd,RHI01436159,11.83,Not Applicable
Department for Business Innovation and Skills,Intellectual Property Office,16/09/2015,Travel & Subsistence,Innovation Directorate,Leasedrive Velo Rental Management Ltd,RHI01437844,107.09,Not Applicable
Department for Business Innovation and Skills,Intellectual Property Office,22/09/2015,Travel & Subsistence,Innovation Directorate,Leasedrive Velo Rental Management Ltd,RHI01441632,59.33,Not Applicable
Department for Business Innovation and Skills,Intellectual Property Office,24/09/2015,Travel & Subsistence,IT Directorate,Leasedrive Velo Rental Management Ltd,RHI01443100,945.17,Not Applicable
Department for Business Innovation and Skills,Intellectual Property Office,17/09/2015,Travel & Subsistence,Innovation Directorate,Leasedrive Velo Rental Management Ltd,RHI01444925,53.54,Not Applicable
Department for Business Innovation and Skills,Intellectual Property Office,23/09/2015,Travel & Subsistence,Patents Directorate,Leasedrive Velo Rental Management Ltd,RHI01447061,56.87,Not Applicable
Department for Business Innovation and Skills,Intellectual Property Office,23/09/2015,Travel & Subsistence,Innovation Directorate,Leasedrive Velo Rental Management Ltd,RHI01447062,107.09,Not Applicable
Department for Business Innovation and Skills,Intellectual Property Office,28/09/2015,Travel & Subsistence,Patents Directorate,Leasedrive Velo Rental Management Ltd,RHI01448341,59.33,Not Applicable
Department for Business Innovation and Skills,Intellectual Property Office,28/09/2015,Travel & Subsistence,Innovation Directorate,Leasedrive Velo Rental Management Ltd,RHI01448342,268.49,Not Applicable
Department for Business Innovation and Skills,Intellectual Property Office,23/09/2015,Travel & Subsistence,Patents Directorate,Leasedrive Velo Rental Management Ltd,RHI01448343,109.54,Not Applicable
Department for Business Innovation and Skills,Intellectual Property Office,28/09/2015,Travel & Subsistence,Innovation Directorate,Leasedrive Velo Rental Management Ltd,RHI01448344,107.09,Not Applicable
Department for Business Innovation and Skills,Intellectual Property Office,24/09/2015,Travel & Subsistence,Copyright and Enforcement Directorate,Leasedrive Velo Rental Management Ltd,RHI01448347,58.45,Not Applicable
Department for Business Innovation and Skills,Intellectual Property Office,28/09/2015,Travel & Subsistence,Innovation Directorate,Leasedrive Velo Rental Management Ltd,RHI01449781,178.99,Not Applicable
Department for Business Innovation and Skills,Intellectual Property Office,28/09/2015,Travel & Subsistence,Patents Directorate,Leasedrive Velo Rental Management Ltd,RHI01450439,68.23,Not Applicable
